Workbook

Sheet Vysvětlivky
A1: Seznam signálů SCADA - Výrobny | H1: Změněno dne: 14. 7. 2023
A2: Vysvětlivky
B4: Textová adresa (TA) | J4: IEC-60870-5-101 | Z4: Interpretace dat
A5: Příznak | B5: Označení stanice PREdi | C5: Napěťová hladina | D5: Číslo pole | E5: Typ signálu | F5: Normované označení | G5: Název signálu | H5: Textová adresa | J5: ASDU Address | K5: ASDU High Byte | L5: ASDU Low Byte | M5: Pomocné | R5: ="Počet duplicit v IOA = " &COUNTIF(R7:R63, "DUPLICITA") -> Počet duplicit v IOA = 0 | S5: =IF(COUNTIF(R7:R63, "DUPLICITA")>0,"DUPLICITA","Information Object Address") -> Information Object Address | T5: IOA High Byte | U5: IOA Mid Byte | V5: IOA Low Byte | W5: Datový typ | Z5: 0 / 00 | AA5: 1 / 01 | AB5: 10 | AC5: 11 | AD5: Jednotka | AF5: Poznámka
A6: P | B6: TA_STA | C6: TA_NAP | D6: TA_POLE | E6: TA_TYP | F6: TA_OZN | G6: TA_Popis | H6: TA_ADR | I6: x | J6: CAASDU_suma | K6: CAASDU2 | L6: CAASDU1 | M6: A | N6: B | O6: C | P6: D | Q6: E | R6: ="IOA = " &COUNTIF(R7:R63, "DUPLICITA") -> IOA = 0 | S6: IOA_suma | T6: IOA3 | U6: IOA2 | V6: IOA1 | W6: TI_IEC | X6: TI_OZN | Y6: x | Z6: LAB0 | AA6: LAB1 | AB6: LAB2 | AC6: LAB3 | AD6: UNIT | AE6: x | AF6: POZN
B7: TS1234 | C7: 22 | D7: 4 | E7: Z | F7: QM | G7: Vypínač QM - povel | H7: TS1234.22.4.Z.QM | J7: 41234 | K7: 161 | L7: 18 | M7: 3 | N7: 4 | O7: 10 | P7: 1 | Q7: 0 | R7: OK | S7: 3801348 | T7: 58 | U7: 1 | V7: 4 | W7: 46 | X7: C_DC_NA_1 | AA7: VYPNOUT | AB7: ZAPNOUT
B8: TS1234 | C8: 22 | D8: 4 | E8: S | F8: QM | G8: Vypínač QM - stav | H8: TS1234.22.4.S.QM | J8: 41234 | K8: 161 | L8: 18 | M8: 3 | N8: 4 | O8: 0 | P8: 1 | Q8: 0 | R8: OK | S8: 3145988 | T8: 48 | U8: 1 | V8: 4 | W8: 31 | X8: M_DP_TB_1 | Z8: MEZIPOLOHA | AA8: VYPNUTO | AB8: ZAPNUTO | AC8: PORUCHA
B9: TS1234 | C9: 22 | D9: 4 | E9: S | F9: Q6 | G9: Odpojovač Q6 - stav | H9: TS1234.22.4.S.Q6 | J9: 41234 | K9: 161 | L9: 18 | M9: 3 | N9: 4 | O9: 0 | P9: 17 | Q9: 0 | R9: OK | S9: 3150084 | T9: 48 | U9: 17 | V9: 4 | W9: 31 | X9: M_DP_TB_1 | Z9: MEZIPOLOHA | AA9: VYPNUTO | AB9: ZAPNUTO | AC9: PORUCHA
B10: TS1234 | C10: 22 | D10: 4 | E10: S | F10: QE6 | G10: Uzemňovač QE6 - stav | H10: TS1234.22.4.S.QE6 | J10: 41234 | K10: 161 | L10: 18 | M10: 3 | N10: 4 | O10: 0 | P10: 96 | Q10: 0 | R10: OK | S10: 3170308 | T10: 48 | U10: 96 | V10: 4 | W10: 31 | X10: M_DP_TB_1 | Z10: MEZIPOLOHA | AA10: VYPNUTO | AB10: ZAPNUTO | AC10: PORUCHA
B11: TS1234 | C11: 22 | D11: 4 | E11: M | F11: UL1-L2 | G11: Měření sdruženého napětí L1-L2 | H11: TS1234.22.4.M.UL1-L2 | J11: 41234 | K11: 161 | L11: 18 | M11: 3 | N11: 4 | O11: 13 | P11: 16 | Q11: 0 | R11: OK | S11: 4001796 | T11: 61 | U11: 16 | V11: 4 | W11: 13 | X11: M_ME_NC_1 | AD11: kV
B12: TS1234 | C12: 22 | D12: 4 | E12: M | F12: IL2 | G12: Měření proudu IL2 | H12: TS1234.22.4.M.IL2 | J12: 41234 | K12: 161 | L12: 18 | M12: 3 | N12: 4 | O12: 13 | P12: 2 | Q12: 0 | R12: OK | S12: 3998212 | T12: 61 | U12: 2 | V12: 4 | W12: 13 | X12: M_ME_NC_1 | AD12: A
B13: TS1234 | C13: 22 | D13: 4 | E13: M | F13: P | G13: Měření činného výkonu P | H13: TS1234.22.4.M.P | J13: 41234 | K13: 161 | L13: 18 | M13: 3 | N13: 4 | O13: 13 | P13: 22 | Q13: 0 | R13: OK | S13: 4003332 | T13: 61 | U13: 22 | V13: 4 | W13: 13 | X13: M_ME_NC_1 | AD13: kW
B14: TS1234 | C14: 22 | D14: 4 | E14: M | F14: Q | G14: Měření jalového výkonu Q | H14: TS1234.22.4.M.Q | J14: 41234 | K14: 161 | L14: 18 | M14: 3 | N14: 4 | O14: 13 | P14: 23 | Q14: 0 | R14: OK | S14: 4003588 | T14: 61 | U14: 23 | V14: 4 | W14: 13 | X14: M_ME_NC_1 | AD14: kvar
B15: TS1234 | C15: NNO | D15: VMS | E15: Z | F15: QM_TEST | G15: Zkušební vypínač - povel | H15: TS1234.NNO.VMS.Z.QM_TEST | J15: 41234 | K15: 161 | L15: 18 | M15: 5 | N15: 120 | O15: 10 | P15: 255 | Q15: 0 | R15: OK | S15: 5963640 | T15: 90 | U15: 255 | V15: 120 | W15: 46 | X15: C_DC_NA_1 | AA15: VYPNOUT | AB15: ZAPNOUT
B16: TS1234 | C16: NNO | D16: VMS | E16: S | F16: QM_TEST | G16: Zkušební vypínač - stav | H16: TS1234.NNO.VMS.S.QM_TEST | J16: 41234 | K16: 161 | L16: 18 | M16: 5 | N16: 120 | O16: 0 | P16: 255 | Q16: 0 | R16: OK | S16: 5308280 | T16: 80 | U16: 255 | V16: 120 | W16: 31 | X16: M_DP_TB_1 | Z16: MEZIPOLOHA | AA16: VYPNUTO | AB16: ZAPNUTO | AC16: PORUCHA
B17: TS1234 | C17: NNO | D17: VMS | E17: P | F17: H835L | G17: Stejnosměrné napájení ovládání - ztráta napětí | H17: TS1234.NNO.VMS.P.H835L | J17: 41234 | K17: 161 | L17: 18 | M17: 5 | N17: 120 | O17: 7 | P17: 128 | Q17: 0 | R17: OK | S17: 5734520 | T17: 87 | U17: 128 | V17: 120 | W17: 30 | X17: M_SP_TB_1 | Z17: KONEC | AA17: ZAČÁTEK
B18: TS1234 | C18: NNO | D18: VMS | E18: Z | F18: SPG100 | G18: Stupeň regulace P - výroba 100% - nastavit | H18: TS1234.NNO.VMS.Z.SPG100 | J18: 41234 | K18: 161 | L18: 18 | M18: 5 | N18: 120 | O18: 12 | P18: 81 | Q18: 0 | R18: OK | S18: 6050168 | T18: 92 | U18: 81 | V18: 120 | W18: 45 | X18: C_SC_NA_1 | Z18: VYPNOUT | AA18: ZAPNOUT
B19: TS1234 | C19: NNO | D19: VMS | E19: Z | F19: SPG060 | G19: Stupeň regulace P - výroba 60% - nastavit | H19: TS1234.NNO.VMS.Z.SPG060 | J19: 41234 | K19: 161 | L19: 18 | M19: 5 | N19: 120 | O19: 12 | P19: 82 | Q19: 0 | R19: OK | S19: 6050424 | T19: 92 | U19: 82 | V19: 120 | W19: 45 | X19: C_SC_NA_1 | Z19: VYPNOUT | AA19: ZAPNOUT
B20: TS1234 | C20: NNO | D20: VMS | E20: Z | F20: SPG030 | G20: Stupeň regulace P - výroba 30% - nastavit | H20: TS1234.NNO.VMS.Z.SPG030 | J20: 41234 | K20: 161 | L20: 18 | M20: 5 | N20: 120 | O20: 12 | P20: 83 | Q20: 0 | R20: OK | S20: 6050680 | T20: 92 | U20: 83 | V20: 120 | W20: 45 | X20: C_SC_NA_1 | Z20: VYPNOUT | AA20: ZAPNOUT
B21: TS1234 | C21: NNO | D21: VMS | E21: Z | F21: SPG000 | G21: Stupeň regulace P - výroba 0% - nastavit | H21: TS1234.NNO.VMS.Z.SPG000 | J21: 41234 | K21: 161 | L21: 18 | M21: 5 | N21: 120 | O21: 12 | P21: 84 | Q21: 0 | R21: OK | S21: 6050936 | T21: 92 | U21: 84 | V21: 120 | W21: 45 | X21: C_SC_NA_1 | Z21: VYPNOUT | AA21: ZAPNOUT
B22: TS1234 | C22: NNO | D22: VMS | E22: S | F22: SPG100 | G22: Stupeň regulace P - výroba 100% - nastaveno | H22: TS1234.NNO.VMS.S.SPG100 | J22: 41234 | K22: 161 | L22: 18 | M22: 5 | N22: 120 | O22: 6 | P22: 232 | Q22: 0 | R22: OK | S22: 5695608 | T22: 86 | U22: 232 | V22: 120 | W22: 30 | X22: M_SP_TB_1 | Z22: VYPNUTO | AA22: ZAPNUTO
B23: TS1234 | C23: NNO | D23: VMS | E23: S | F23: SPG060 | G23: Stupeň regulace P - výroba 60% - nastaveno | H23: TS1234.NNO.VMS.S.SPG060 | J23: 41234 | K23: 161 | L23: 18 | M23: 5 | N23: 120 | O23: 6 | P23: 233 | Q23: 0 | R23: OK | S23: 5695864 | T23: 86 | U23: 233 | V23: 120 | W23: 30 | X23: M_SP_TB_1 | Z23: VYPNUTO | AA23: ZAPNUTO
B24: TS1234 | C24: NNO | D24: VMS | E24: S | F24: SPG030 | G24: Stupeň regulace P - výroba 30% - nastaveno | H24: TS1234.NNO.VMS.S.SPG030 | J24: 41234 | K24: 161 | L24: 18 | M24: 5 | N24: 120 | O24: 6 | P24: 234 | Q24: 0 | R24: OK | S24: 5696120 | T24: 86 | U24: 234 | V24: 120 | W24: 30 | X24: M_SP_TB_1 | Z24: VYPNUTO | AA24: ZAPNUTO
B25: TS1234 | C25: NNO | D25: VMS | E25: S | F25: SPG000 | G25: Stupeň regulace P - výroba 0% - nastaveno | H25: TS1234.NNO.VMS.S.SPG000 | J25: 41234 | K25: 161 | L25: 18 | M25: 5 | N25: 120 | O25: 6 | P25: 235 | Q25: 0 | R25: OK | S25: 5696376 | T25: 86 | U25: 235 | V25: 120 | W25: 30 | X25: M_SP_TB_1 | Z25: VYPNUTO | AA25: ZAPNUTO
B26: TS1234 | C26: NNO | D26: VMS | E26: Z | F26: SPFG090C | G26: Stupeň regulace cos fi - 0.90C - nastavit | H26: TS1234.NNO.VMS.Z.SPFG090C | J26: 41234 | K26: 161 | L26: 18 | M26: 5 | N26: 120 | O26: 12 | P26: 127 | Q26: 0 | R26: OK | S26: 6061944 | T26: 92 | U26: 127 | V26: 120 | W26: 45 | X26: C_SC_NA_1 | Z26: VYPNOUT | AA26: ZAPNOUT
B27: TS1234 | C27: NNO | D27: VMS | E27: Z | F27: SPFG095C | G27: Stupeň regulace cos fi - 0.95C - nastavit | H27: TS1234.NNO.VMS.Z.SPFG095C | J27: 41234 | K27: 161 | L27: 18 | M27: 5 | N27: 120 | O27: 12 | P27: 128 | Q27: 0 | R27: OK | S27: 6062200 | T27: 92 | U27: 128 | V27: 120 | W27: 45 | X27: C_SC_NA_1 | Z27: VYPNOUT | AA27: ZAPNOUT
B28: TS1234 | C28: NNO | D28: VMS | E28: Z | F28: SPFG100 | G28: Stupeň regulace cos fi - 1.00 - nastavit | H28: TS1234.NNO.VMS.Z.SPFG100 | J28: 41234 | K28: 161 | L28: 18 | M28: 5 | N28: 120 | O28: 12 | P28: 129 | Q28: 0 | R28: OK | S28: 6062456 | T28: 92 | U28: 129 | V28: 120 | W28: 45 | X28: C_SC_NA_1 | Z28: VYPNOUT | AA28: ZAPNOUT
B29: TS1234 | C29: NNO | D29: VMS | E29: Z | F29: SPFG095L | G29: Stupeň regulace cos fi - 0.95L - nastavit | H29: TS1234.NNO.VMS.Z.SPFG095L | J29: 41234 | K29: 161 | L29: 18 | M29: 5 | N29: 120 | O29: 12 | P29: 130 | Q29: 0 | R29: OK | S29: 6062712 | T29: 92 | U29: 130 | V29: 120 | W29: 45 | X29: C_SC_NA_1 | Z29: VYPNOUT | AA29: ZAPNOUT
B30: TS1234 | C30: NNO | D30: VMS | E30: Z | F30: SPFG090L | G30: Stupeň regulace cos fi - 0.90L - nastavit | H30: TS1234.NNO.VMS.Z.SPFG090L | J30: 41234 | K30: 161 | L30: 18 | M30: 5 | N30: 120 | O30: 12 | P30: 131 | Q30: 0 | R30: OK | S30: 6062968 | T30: 92 | U30: 131 | V30: 120 | W30: 45 | X30: C_SC_NA_1 | Z30: VYPNOUT | AA30: ZAPNOUT
B31: TS1234 | C31: NNO | D31: VMS | E31: S | F31: SPFG090C | G31: Stupeň regulace cos fi - 0.90C - nastaveno | H31: TS1234.NNO.VMS.S.SPFG090C | J31: 41234 | K31: 161 | L31: 18 | M31: 5 | N31: 120 | O31: 6 | P31: 226 | Q31: 0 | R31: OK | S31: 5694072 | T31: 86 | U31: 226 | V31: 120 | W31: 30 | X31: M_SP_TB_1 | Z31: VYPNUTO | AA31: ZAPNUTO
B32: TS1234 | C32: NNO | D32: VMS | E32: S | F32: SPFG095C | G32: Stupeň regulace cos fi - 0.95C - nastaveno | H32: TS1234.NNO.VMS.S.SPFG095C | J32: 41234 | K32: 161 | L32: 18 | M32: 5 | N32: 120 | O32: 6 | P32: 227 | Q32: 0 | R32: OK | S32: 5694328 | T32: 86 | U32: 227 | V32: 120 | W32: 30 | X32: M_SP_TB_1 | Z32: VYPNUTO | AA32: ZAPNUTO
B33: TS1234 | C33: NNO | D33: VMS | E33: S | F33: SPFG100 | G33: Stupeň regulace cos fi - 1.00 - nastaveno | H33: TS1234.NNO.VMS.S.SPFG100 | J33: 41234 | K33: 161 | L33: 18 | M33: 5 | N33: 120 | O33: 6 | P33: 228 | Q33: 0 | R33: OK | S33: 5694584 | T33: 86 | U33: 228 | V33: 120 | W33: 30 | X33: M_SP_TB_1 | Z33: VYPNUTO | AA33: ZAPNUTO
B34: TS1234 | C34: NNO | D34: VMS | E34: S | F34: SPFG095L | G34: Stupeň regulace cos fi - 0.95L - nastaveno | H34: TS1234.NNO.VMS.S.SPFG095L | J34: 41234 | K34: 161 | L34: 18 | M34: 5 | N34: 120 | O34: 6 | P34: 229 | Q34: 0 | R34: OK | S34: 5694840 | T34: 86 | U34: 229 | V34: 120 | W34: 30 | X34: M_SP_TB_1 | Z34: VYPNUTO | AA34: ZAPNUTO
B35: TS1234 | C35: NNO | D35: VMS | E35: S | F35: SPFG090L | G35: Stupeň regulace cos fi - 0.90L - nastaveno | H35: TS1234.NNO.VMS.S.SPFG090L | J35: 41234 | K35: 161 | L35: 18 | M35: 5 | N35: 120 | O35: 6 | P35: 230 | Q35: 0 | R35: OK | S35: 5695096 | T35: 86 | U35: 230 | V35: 120 | W35: 30 | X35: M_SP_TB_1 | Z35: VYPNUTO | AA35: ZAPNUTO
B36: TS1234 | C36: NNO | D36: VM1 | E36: S | F36: QM | G36: Vypínač QM - stav | H36: TS1234.NNO.VM1.S.QM | J36: 41234 | K36: 161 | L36: 18 | M36: 5 | N36: 121 | O36: 0 | P36: 1 | Q36: 0 | R36: OK | S36: 5243257 | T36: 80 | U36: 1 | V36: 121 | W36: 31 | X36: M_DP_TB_1 | Z36: MEZIPOLOHA | AA36: VYPNUTO | AB36: ZAPNUTO | AC36: PORUCHA
B37: TS1234 | C37: NNO | D37: VM1 | E37: P | F37: H100T | G37: Ochrany - působení ochran | H37: TS1234.NNO.VM1.P.H100T | J37: 41234 | K37: 161 | L37: 18 | M37: 5 | N37: 121 | O37: 1 | P37: 1 | Q37: 0 | R37: OK | S37: 5308793 | T37: 81 | U37: 1 | V37: 121 | W37: 30 | X37: M_SP_TB_1 | Z37: KONEC | AA37: ZAČÁTEK
B38: TS1234 | C38: NNO | D38: VM1 | E38: P | F38: H100IF | G38: Ochrany - vnitřní porucha | H38: TS1234.NNO.VM1.P.H100IF | J38: 41234 | K38: 161 | L38: 18 | M38: 5 | N38: 121 | O38: 2 | P38: 17 | Q38: 0 | R38: OK | S38: 5378425 | T38: 82 | U38: 17 | V38: 121 | W38: 30 | X38: M_SP_TB_1 | Z38: KONEC | AA38: ZAČÁTEK

Sheet Příklad 1
A1: Seznam signálů SCADA - Výrobny
A2: Příklad 1
B4: Textová adresa (TA) | J4: IEC-60870-5-101 | Z4: Interpretace dat
A5: Příznak | B5: Označení stanice PREdi | C5: Napěťová hladina | D5: Číslo pole | E5: Typ signálu | F5: Normované označení | G5: Název signálu | H5: Textová adresa | J5: ASDU Address | K5: ASDU High Byte | L5: ASDU Low Byte | M5: Pomocné | R5: ="Počet duplicit v IOA = " &COUNTIF(R7:R40, "DUPLICITA") -> Počet duplicit v IOA = 0 | S5: =IF(COUNTIF(R7:R40, "DUPLICITA")>0,"DUPLICITA","Information Object Address") -> Information Object Address | T5: IOA High Byte | U5: IOA Mid Byte | V5: IOA Low Byte | W5: Datový typ | Z5: 0 / 00 | AA5: 1 / 01 | AB5: 10 | AC5: 11 | AD5: Jednotka | AF5: Poznámka
A6: P | B6: TA_STA | C6: TA_NAP | D6: TA_POLE | E6: TA_TYP | F6: TA_OZN | G6: TA_Popis | H6: TA_ADR | I6: x | J6: CAASDU_suma | K6: CAASDU2 | L6: CAASDU1 | M6: A | N6: B | O6: C | P6: D | Q6: E | R6: ="IOA = " &COUNTIF(R7:R40, "DUPLICITA") -> IOA = 0 | S6: IOA_suma | T6: IOA3 | U6: IOA2 | V6: IOA1 | W6: TI_IEC | X6: TI_OZN | Y6: x | Z6: LAB0 | AA6: LAB1 | AB6: LAB2 | AC6: LAB3 | AD6: UNIT | AE6: x | AF6: POZN
B7: TS1234 | C7: 22 | D7: 4 | E7: Z | F7: QM | G7: Vypínač QM - povel | H7: TS1234.22.4.Z.QM | J7: 41234 | K7: 161 | L7: 18 | M7: 3 | N7: 4 | O7: 10 | P7: 1 | Q7: 0 | R7: OK | S7: 3801348 | T7: 58 | U7: 1 | V7: 4 | W7: 46 | X7: C_DC_NA_1 | AA7: VYPNOUT | AB7: ZAPNOUT
B8: TS1234 | C8: 22 | D8: 4 | E8: S | F8: QM | G8: Vypínač QM - stav | H8: TS1234.22.4.S.QM | J8: 41234 | K8: 161 | L8: 18 | M8: 3 | N8: 4 | O8: 0 | P8: 1 | Q8: 0 | R8: OK | S8: 3145988 | T8: 48 | U8: 1 | V8: 4 | W8: 31 | X8: M_DP_TB_1 | Z8: MEZIPOLOHA | AA8: VYPNUTO | AB8: ZAPNUTO | AC8: PORUCHA
B9: TS1234 | C9: 22 | D9: 4 | E9: S | F9: Q6 | G9: Odpojovač Q6 - stav | H9: TS1234.22.4.S.Q6 | J9: 41234 | K9: 161 | L9: 18 | M9: 3 | N9: 4 | O9: 0 | P9: 17 | Q9: 0 | R9: OK | S9: 3150084 | T9: 48 | U9: 17 | V9: 4 | W9: 31 | X9: M_DP_TB_1 | Z9: MEZIPOLOHA | AA9: VYPNUTO | AB9: ZAPNUTO | AC9: PORUCHA
B10: TS1234 | C10: 22 | D10: 4 | E10: S | F10: QE6 | G10: Uzemňovač QE6 - stav | H10: TS1234.22.4.S.QE6 | J10: 41234 | K10: 161 | L10: 18 | M10: 3 | N10: 4 | O10: 0 | P10: 96 | Q10: 0 | R10: OK | S10: 3170308 | T10: 48 | U10: 96 | V10: 4 | W10: 31 | X10: M_DP_TB_1 | Z10: MEZIPOLOHA | AA10: VYPNUTO | AB10: ZAPNUTO | AC10: PORUCHA
B11: TS1234 | C11: 22 | D11: 4 | E11: M | F11: UL1-L2 | G11: Měření sdruženého napětí L1-L2 | H11: TS1234.22.4.M.UL1-L2 | J11: 41234 | K11: 161 | L11: 18 | M11: 3 | N11: 4 | O11: 13 | P11: 16 | Q11: 0 | R11: OK | S11: 4001796 | T11: 61 | U11: 16 | V11: 4 | W11: 13 | X11: M_ME_NC_1 | AD11: kV
B12: TS1234 | C12: 22 | D12: 4 | E12: M | F12: IL2 | G12: Měření proudu IL2 | H12: TS1234.22.4.M.IL2 | J12: 41234 | K12: 161 | L12: 18 | M12: 3 | N12: 4 | O12: 13 | P12: 2 | Q12: 0 | R12: OK | S12: 3998212 | T12: 61 | U12: 2 | V12: 4 | W12: 13 | X12: M_ME_NC_1 | AD12: A
B13: TS1234 | C13: 22 | D13: 4 | E13: M | F13: P | G13: Měření činného výkonu P | H13: TS1234.22.4.M.P | J13: 41234 | K13: 161 | L13: 18 | M13: 3 | N13: 4 | O13: 13 | P13: 22 | Q13: 0 | R13: OK | S13: 4003332 | T13: 61 | U13: 22 | V13: 4 | W13: 13 | X13: M_ME_NC_1 | AD13: kW
B14: TS1234 | C14: 22 | D14: 4 | E14: M | F14: Q | G14: Měření jalového výkonu Q | H14: TS1234.22.4.M.Q | J14: 41234 | K14: 161 | L14: 18 | M14: 3 | N14: 4 | O14: 13 | P14: 23 | Q14: 0 | R14: OK | S14: 4003588 | T14: 61 | U14: 23 | V14: 4 | W14: 13 | X14: M_ME_NC_1 | AD14: kvar
B15: TS1234 | C15: NNO | D15: VMS | E15: Z | F15: QM_TEST | G15: Zkušební vypínač - povel | H15: TS1234.NNO.VMS.Z.QM_TEST | J15: 41234 | K15: 161 | L15: 18 | M15: 5 | N15: 120 | O15: 10 | P15: 255 | Q15: 0 | R15: OK | S15: 5963640 | T15: 90 | U15: 255 | V15: 120 | W15: 46 | X15: C_DC_NA_1 | AA15: VYPNOUT | AB15: ZAPNOUT
B16: TS1234 | C16: NNO | D16: VMS | E16: S | F16: QM_TEST | G16: Zkušební vypínač - stav | H16: TS1234.NNO.VMS.S.QM_TEST | J16: 41234 | K16: 161 | L16: 18 | M16: 5 | N16: 120 | O16: 0 | P16: 255 | Q16: 0 | R16: OK | S16: 5308280 | T16: 80 | U16: 255 | V16: 120 | W16: 31 | X16: M_DP_TB_1 | Z16: MEZIPOLOHA | AA16: VYPNUTO | AB16: ZAPNUTO | AC16: PORUCHA
B17: TS1234 | C17: NNO | D17: VMS | E17: P | F17: H835L | G17: Stejnosměrné napájení ovládání - ztráta napětí | H17: TS1234.NNO.VMS.P.H835L | J17: 41234 | K17: 161 | L17: 18 | M17: 5 | N17: 120 | O17: 7 | P17: 128 | Q17: 0 | R17: OK | S17: 5734520 | T17: 87 | U17: 128 | V17: 120 | W17: 30 | X17: M_SP_TB_1 | Z17: KONEC | AA17: ZAČÁTEK
B18: TS1234 | C18: NNO | D18: VMS | E18: Z | F18: SPG100 | G18: Stupeň regulace P - výroba 100% - nastavit | H18: TS1234.NNO.VMS.Z.SPG100 | J18: 41234 | K18: 161 | L18: 18 | M18: 5 | N18: 120 | O18: 12 | P18: 81 | Q18: 0 | R18: OK | S18: 6050168 | T18: 92 | U18: 81 | V18: 120 | W18: 45 | X18: C_SC_NA_1 | Z18: VYPNOUT | AA18: ZAPNOUT
B19: TS1234 | C19: NNO | D19: VMS | E19: Z | F19: SPG060 | G19: Stupeň regulace P - výroba 60% - nastavit | H19: TS1234.NNO.VMS.Z.SPG060 | J19: 41234 | K19: 161 | L19: 18 | M19: 5 | N19: 120 | O19: 12 | P19: 82 | Q19: 0 | R19: OK | S19: 6050424 | T19: 92 | U19: 82 | V19: 120 | W19: 45 | X19: C_SC_NA_1 | Z19: VYPNOUT | AA19: ZAPNOUT
B20: TS1234 | C20: NNO | D20: VMS | E20: Z | F20: SPG030 | G20: Stupeň regulace P - výroba 30% - nastavit | H20: TS1234.NNO.VMS.Z.SPG030 | J20: 41234 | K20: 161 | L20: 18 | M20: 5 | N20: 120 | O20: 12 | P20: 83 | Q20: 0 | R20: OK | S20: 6050680 | T20: 92 | U20: 83 | V20: 120 | W20: 45 | X20: C_SC_NA_1 | Z20: VYPNOUT | AA20: ZAPNOUT
B21: TS1234 | C21: NNO | D21: VMS | E21: Z | F21: SPG000 | G21: Stupeň regulace P - výroba 0% - nastavit | H21: TS1234.NNO.VMS.Z.SPG000 | J21: 41234 | K21: 161 | L21: 18 | M21: 5 | N21: 120 | O21: 12 | P21: 84 | Q21: 0 | R21: OK | S21: 6050936 | T21: 92 | U21: 84 | V21: 120 | W21: 45 | X21: C_SC_NA_1 | Z21: VYPNOUT | AA21: ZAPNOUT
B22: TS1234 | C22: NNO | D22: VMS | E22: S | F22: SPG100 | G22: Stupeň regulace P - výroba 100% - nastaveno | H22: TS1234.NNO.VMS.S.SPG100 | J22: 41234 | K22: 161 | L22: 18 | M22: 5 | N22: 120 | O22: 6 | P22: 232 | Q22: 0 | R22: OK | S22: 5695608 | T22: 86 | U22: 232 | V22: 120 | W22: 30 | X22: M_SP_TB_1 | Z22: VYPNUTO | AA22: ZAPNUTO
B23: TS1234 | C23: NNO | D23: VMS | E23: S | F23: SPG060 | G23: Stupeň regulace P - výroba 60% - nastaveno | H23: TS1234.NNO.VMS.S.SPG060 | J23: 41234 | K23: 161 | L23: 18 | M23: 5 | N23: 120 | O23: 6 | P23: 233 | Q23: 0 | R23: OK | S23: 5695864 | T23: 86 | U23: 233 | V23: 120 | W23: 30 | X23: M_SP_TB_1 | Z23: VYPNUTO | AA23: ZAPNUTO
B24: TS1234 | C24: NNO | D24: VMS | E24: S | F24: SPG030 | G24: Stupeň regulace P - výroba 30% - nastaveno | H24: TS1234.NNO.VMS.S.SPG030 | J24: 41234 | K24: 161 | L24: 18 | M24: 5 | N24: 120 | O24: 6 | P24: 234 | Q24: 0 | R24: OK | S24: 5696120 | T24: 86 | U24: 234 | V24: 120 | W24: 30 | X24: M_SP_TB_1 | Z24: VYPNUTO | AA24: ZAPNUTO
B25: TS1234 | C25: NNO | D25: VMS | E25: S | F25: SPG000 | G25: Stupeň regulace P - výroba 0% - nastaveno | H25: TS1234.NNO.VMS.S.SPG000 | J25: 41234 | K25: 161 | L25: 18 | M25: 5 | N25: 120 | O25: 6 | P25: 235 | Q25: 0 | R25: OK | S25: 5696376 | T25: 86 | U25: 235 | V25: 120 | W25: 30 | X25: M_SP_TB_1 | Z25: VYPNUTO | AA25: ZAPNUTO
B26: TS1234 | C26: NNO | D26: VMS | E26: Z | F26: SPFG090C | G26: Stupeň regulace cos fi - 0.90C - nastavit | H26: TS1234.NNO.VMS.Z.SPFG090C | J26: 41234 | K26: 161 | L26: 18 | M26: 5 | N26: 120 | O26: 12 | P26: 127 | Q26: 0 | R26: OK | S26: 6061944 | T26: 92 | U26: 127 | V26: 120 | W26: 45 | X26: C_SC_NA_1 | Z26: VYPNOUT | AA26: ZAPNOUT
B27: TS1234 | C27: NNO | D27: VMS | E27: Z | F27: SPFG095C | G27: Stupeň regulace cos fi - 0.95C - nastavit | H27: TS1234.NNO.VMS.Z.SPFG095C | J27: 41234 | K27: 161 | L27: 18 | M27: 5 | N27: 120 | O27: 12 | P27: 128 | Q27: 0 | R27: OK | S27: 6062200 | T27: 92 | U27: 128 | V27: 120 | W27: 45 | X27: C_SC_NA_1 | Z27: VYPNOUT | AA27: ZAPNOUT
B28: TS1234 | C28: NNO | D28: VMS | E28: Z | F28: SPFG100 | G28: Stupeň regulace cos fi - 1.00 - nastavit | H28: TS1234.NNO.VMS.Z.SPFG100 | J28: 41234 | K28: 161 | L28: 18 | M28: 5 | N28: 120 | O28: 12 | P28: 129 | Q28: 0 | R28: OK | S28: 6062456 | T28: 92 | U28: 129 | V28: 120 | W28: 45 | X28: C_SC_NA_1 | Z28: VYPNOUT | AA28: ZAPNOUT
B29: TS1234 | C29: NNO | D29: VMS | E29: Z | F29: SPFG095L | G29: Stupeň regulace cos fi - 0.95L - nastavit | H29: TS1234.NNO.VMS.Z.SPFG095L | J29: 41234 | K29: 161 | L29: 18 | M29: 5 | N29: 120 | O29: 12 | P29: 130 | Q29: 0 | R29: OK | S29: 6062712 | T29: 92 | U29: 130 | V29: 120 | W29: 45 | X29: C_SC_NA_1 | Z29: VYPNOUT | AA29: ZAPNOUT
B30: TS1234 | C30: NNO | D30: VMS | E30: Z | F30: SPFG090L | G30: Stupeň regulace cos fi - 0.90L - nastavit | H30: TS1234.NNO.VMS.Z.SPFG090L | J30: 41234 | K30: 161 | L30: 18 | M30: 5 | N30: 120 | O30: 12 | P30: 131 | Q30: 0 | R30: OK | S30: 6062968 | T30: 92 | U30: 131 | V30: 120 | W30: 45 | X30: C_SC_NA_1 | Z30: VYPNOUT | AA30: ZAPNOUT
B31: TS1234 | C31: NNO | D31: VMS | E31: S | F31: SPFG090C | G31: Stupeň regulace cos fi - 0.90C - nastaveno | H31: TS1234.NNO.VMS.S.SPFG090C | J31: 41234 | K31: 161 | L31: 18 | M31: 5 | N31: 120 | O31: 6 | P31: 226 | Q31: 0 | R31: OK | S31: 5694072 | T31: 86 | U31: 226 | V31: 120 | W31: 30 | X31: M_SP_TB_1 | Z31: VYPNUTO | AA31: ZAPNUTO
B32: TS1234 | C32: NNO | D32: VMS | E32: S | F32: SPFG095C | G32: Stupeň regulace cos fi - 0.95C - nastaveno | H32: TS1234.NNO.VMS.S.SPFG095C | J32: 41234 | K32: 161 | L32: 18 | M32: 5 | N32: 120 | O32: 6 | P32: 227 | Q32: 0 | R32: OK | S32: 5694328 | T32: 86 | U32: 227 | V32: 120 | W32: 30 | X32: M_SP_TB_1 | Z32: VYPNUTO | AA32: ZAPNUTO
B33: TS1234 | C33: NNO | D33: VMS | E33: S | F33: SPFG100 | G33: Stupeň regulace cos fi - 1.00 - nastaveno | H33: TS1234.NNO.VMS.S.SPFG100 | J33: 41234 | K33: 161 | L33: 18 | M33: 5 | N33: 120 | O33: 6 | P33: 228 | Q33: 0 | R33: OK | S33: 5694584 | T33: 86 | U33: 228 | V33: 120 | W33: 30 | X33: M_SP_TB_1 | Z33: VYPNUTO | AA33: ZAPNUTO
B34: TS1234 | C34: NNO | D34: VMS | E34: S | F34: SPFG095L | G34: Stupeň regulace cos fi - 0.95L - nastaveno | H34: TS1234.NNO.VMS.S.SPFG095L | J34: 41234 | K34: 161 | L34: 18 | M34: 5 | N34: 120 | O34: 6 | P34: 229 | Q34: 0 | R34: OK | S34: 5694840 | T34: 86 | U34: 229 | V34: 120 | W34: 30 | X34: M_SP_TB_1 | Z34: VYPNUTO | AA34: ZAPNUTO
B35: TS1234 | C35: NNO | D35: VMS | E35: S | F35: SPFG090L | G35: Stupeň regulace cos fi - 0.90L - nastaveno | H35: TS1234.NNO.VMS.S.SPFG090L | J35: 41234 | K35: 161 | L35: 18 | M35: 5 | N35: 120 | O35: 6 | P35: 230 | Q35: 0 | R35: OK | S35: 5695096 | T35: 86 | U35: 230 | V35: 120 | W35: 30 | X35: M_SP_TB_1 | Z35: VYPNUTO | AA35: ZAPNUTO
B36: TS1234 | C36: NNO | D36: VM1 | E36: S | F36: QM | G36: Vypínač QM - stav | H36: TS1234.NNO.VM1.S.QM | J36: 41234 | K36: 161 | L36: 18 | M36: 5 | N36: 121 | O36: 0 | P36: 1 | Q36: 0 | R36: OK | S36: 5243257 | T36: 80 | U36: 1 | V36: 121 | W36: 31 | X36: M_DP_TB_1 | Z36: MEZIPOLOHA | AA36: VYPNUTO | AB36: ZAPNUTO | AC36: PORUCHA
B37: TS1234 | C37: NNO | D37: VM1 | E37: P | F37: H100T | G37: Ochrany - působení ochran | H37: TS1234.NNO.VM1.P.H100T | J37: 41234 | K37: 161 | L37: 18 | M37: 5 | N37: 121 | O37: 1 | P37: 1 | Q37: 0 | R37: OK | S37: 5308793 | T37: 81 | U37: 1 | V37: 121 | W37: 30 | X37: M_SP_TB_1 | Z37: KONEC | AA37: ZAČÁTEK
B38: TS1234 | C38: NNO | D38: VM1 | E38: P | F38: H100IF | G38: Ochrany - vnitřní porucha | H38: 1234.NNO.VM1.P.H100IF | J38: 41234 | K38: 161 | L38: 18 | M38: 5 | N38: 121 | O38: 2 | P38: 17 | Q38: 0 | R38: OK | S38: 5378425 | T38: 82 | U38: 17 | V38: 121 | W38: 30 | X38: M_SP_TB_1 | Z38: KONEC | AA38: ZAČÁTEK

Sheet Příklad 2
A1: Seznam signálů SCADA - Výrobny
A2: Příklad 2
B4: Textová adresa (TA) | J4: IEC-60870-5-101 | Z4: Interpretace dat
A5: Příznak | B5: Označení stanice PREdi | C5: Napěťová hladina | D5: Číslo pole | E5: Typ signálu | F5: Normované označení | G5: Název signálu | H5: Textová adresa | J5: ASDU Address | K5: ASDU High Byte | L5: ASDU Low Byte | M5: Pomocné | R5: ="Počet duplicit v IOA = " &COUNTIF(R7:R41, "DUPLICITA") -> Počet duplicit v IOA = 0 | S5: =IF(COUNTIF(R7:R41, "DUPLICITA")>0,"DUPLICITA","Information Object Address") -> Information Object Address | T5: IOA High Byte | U5: IOA Mid Byte | V5: IOA Low Byte | W5: Datový typ | Z5: 0 / 00 | AA5: 1 / 01 | AB5: 10 | AC5: 11 | AD5: Jednotka | AF5: Poznámka
A6: P | B6: TA_STA | C6: TA_NAP | D6: TA_POLE | E6: TA_TYP | F6: TA_OZN | G6: TA_Popis | H6: TA_ADR | I6: x | J6: CAASDU_suma | K6: CAASDU2 | L6: CAASDU1 | M6: A | N6: B | O6: C | P6: D | Q6: E | R6: ="IOA = " &COUNTIF(R7:R41, "DUPLICITA") -> IOA = 0 | S6: IOA_suma | T6: IOA3 | U6: IOA2 | V6: IOA1 | W6: TI_IEC | X6: TI_OZN | Y6: x | Z6: LAB0 | AA6: LAB1 | AB6: LAB2 | AC6: LAB3 | AD6: UNIT | AE6: x | AF6: POZN
B7: TS1234 | C7: NNO | D7: VMS | E7: Z | F7: QM | G7: Vypínač QM - povel | H7: TS1234.NNO.VMS.Z.QM | J7: 41234 | K7: 161 | L7: 18 | M7: 5 | N7: 120 | O7: 10 | P7: 1 | Q7: 0 | R7: OK | S7: 5898616 | T7: 90 | U7: 1 | V7: 120 | W7: 46 | X7: C_DC_NA_1 | AA7: VYPNOUT | AB7: ZAPNOUT
B8: TS1234 | C8: NNO | D8: VMS | E8: S | F8: QM | G8: Vypínač QM - stav | H8: TS1234.NNO.VMS.S.QM | J8: 41234 | K8: 161 | L8: 18 | M8: 5 | N8: 120 | O8: 0 | P8: 1 | Q8: 0 | R8: OK | S8: 5243256 | T8: 80 | U8: 1 | V8: 120 | W8: 31 | X8: M_DP_TB_1 | Z8: MEZIPOLOHA | AA8: VYPNUTO | AB8: ZAPNUTO | AC8: PORUCHA
B9: TS1234 | C9: NNO | D9: VMS | E9: M | F9: UL2 | G9: Měření fázového napětí UL2 | H9: TS1234.NNO.VMS.M.UL2 | J9: 41234 | K9: 161 | L9: 18 | M9: 5 | N9: 120 | O9: 13 | P9: 10 | Q9: 0 | R9: OK | S9: 6097528 | T9: 93 | U9: 10 | V9: 120 | W9: 13 | X9: M_ME_NC_1 | AD9: V
B10: TS1234 | C10: NNO | D10: VMS | E10: M | F10: IL2 | G10: Měření proudu IL2 | H10: TS1234.NNO.VMS.M.IL2 | J10: 41234 | K10: 161 | L10: 18 | M10: 5 | N10: 120 | O10: 13 | P10: 2 | Q10: 0 | R10: OK | S10: 6095480 | T10: 93 | U10: 2 | V10: 120 | W10: 13 | X10: M_ME_NC_1 | AD10: A
B11: TS1234 | C11: NNO | D11: VMS | E11: M | F11: P | G11: Měření činného výkonu P | H11: TS1234.NNO.VMS.M.P | J11: 41234 | K11: 161 | L11: 18 | M11: 5 | N11: 120 | O11: 13 | P11: 22 | Q11: 0 | R11: OK | S11: 6100600 | T11: 93 | U11: 22 | V11: 120 | W11: 13 | X11: M_ME_NC_1 | AD11: kW
B12: TS1234 | C12: NNO | D12: VMS | E12: M | F12: Q | G12: Měření jalového výkonu Q | H12: TS1234.NNO.VMS.M.Q | J12: 41234 | K12: 161 | L12: 18 | M12: 5 | N12: 120 | O12: 13 | P12: 23 | Q12: 0 | R12: OK | S12: 6100856 | T12: 93 | U12: 23 | V12: 120 | W12: 13 | X12: M_ME_NC_1 | AD12: kvar
B13: TS1234 | C13: NNO | D13: VMS | E13: Z | F13: QM_TEST | G13: Zkušební vypínač - povel | H13: TS1234.NNO.VMS.Z.QM_TEST | J13: 41234 | K13: 161 | L13: 18 | M13: 5 | N13: 120 | O13: 10 | P13: 255 | Q13: 0 | R13: OK | S13: 5963640 | T13: 90 | U13: 255 | V13: 120 | W13: 46 | X13: C_DC_NA_1 | AA13: VYPNOUT | AB13: ZAPNOUT
B14: TS1234 | C14: NNO | D14: VMS | E14: S | F14: QM_TEST | G14: Zkušební vypínač - stav | H14: TS1234.NNO.VMS.S.QM_TEST | J14: 41234 | K14: 161 | L14: 18 | M14: 5 | N14: 120 | O14: 0 | P14: 255 | Q14: 0 | R14: OK | S14: 5308280 | T14: 80 | U14: 255 | V14: 120 | W14: 31 | X14: M_DP_TB_1 | Z14: MEZIPOLOHA | AA14: VYPNUTO | AB14: ZAPNUTO | AC14: PORUCHA
B15: TS1234 | C15: NNO | D15: VMS | E15: P | F15: H835L | G15: Stejnosměrné napájení ovládání - ztráta napětí | H15: TS1234.NNO.VMS.P.H835L | J15: 41234 | K15: 161 | L15: 18 | M15: 5 | N15: 120 | O15: 7 | P15: 128 | Q15: 0 | R15: OK | S15: 5734520 | T15: 87 | U15: 128 | V15: 120 | W15: 30 | X15: M_SP_TB_1 | Z15: KONEC | AA15: ZAČÁTEK
B16: TS1234 | C16: NNO | D16: VMS | E16: Z | F16: SPG100 | G16: Stupeň regulace P - výroba 100% - nastavit | H16: TS1234.NNO.VMS.Z.SPG100 | J16: 41234 | K16: 161 | L16: 18 | M16: 5 | N16: 120 | O16: 12 | P16: 81 | Q16: 0 | R16: OK | S16: 6050168 | T16: 92 | U16: 81 | V16: 120 | W16: 45 | X16: C_SC_NA_1 | Z16: VYPNOUT | AA16: ZAPNOUT
B17: TS1234 | C17: NNO | D17: VMS | E17: Z | F17: SPG060 | G17: Stupeň regulace P - výroba 60% - nastavit | H17: TS1234.NNO.VMS.Z.SPG060 | J17: 41234 | K17: 161 | L17: 18 | M17: 5 | N17: 120 | O17: 12 | P17: 82 | Q17: 0 | R17: OK | S17: 6050424 | T17: 92 | U17: 82 | V17: 120 | W17: 45 | X17: C_SC_NA_1 | Z17: VYPNOUT | AA17: ZAPNOUT
B18: TS1234 | C18: NNO | D18: VMS | E18: Z | F18: SPG030 | G18: Stupeň regulace P - výroba 30% - nastavit | H18: TS1234.NNO.VMS.Z.SPG030 | J18: 41234 | K18: 161 | L18: 18 | M18: 5 | N18: 120 | O18: 12 | P18: 83 | Q18: 0 | R18: OK | S18: 6050680 | T18: 92 | U18: 83 | V18: 120 | W18: 45 | X18: C_SC_NA_1 | Z18: VYPNOUT | AA18: ZAPNOUT
B19: TS1234 | C19: NNO | D19: VMS | E19: Z | F19: SPG000 | G19: Stupeň regulace P - výroba 0% - nastavit | H19: TS1234.NNO.VMS.Z.SPG000 | J19: 41234 | K19: 161 | L19: 18 | M19: 5 | N19: 120 | O19: 12 | P19: 84 | Q19: 0 | R19: OK | S19: 6050936 | T19: 92 | U19: 84 | V19: 120 | W19: 45 | X19: C_SC_NA_1 | Z19: VYPNOUT | AA19: ZAPNOUT
B20: TS1234 | C20: NNO | D20: VMS | E20: S | F20: SPG100 | G20: Stupeň regulace P - výroba 100% - nastaveno | H20: TS1234.NNO.VMS.S.SPG100 | J20: 41234 | K20: 161 | L20: 18 | M20: 5 | N20: 120 | O20: 6 | P20: 232 | Q20: 0 | R20: OK | S20: 5695608 | T20: 86 | U20: 232 | V20: 120 | W20: 30 | X20: M_SP_TB_1 | Z20: VYPNUTO | AA20: ZAPNUTO
B21: TS1234 | C21: NNO | D21: VMS | E21: S | F21: SPG060 | G21: Stupeň regulace P - výroba 60% - nastaveno | H21: TS1234.NNO.VMS.S.SPG060 | J21: 41234 | K21: 161 | L21: 18 | M21: 5 | N21: 120 | O21: 6 | P21: 233 | Q21: 0 | R21: OK | S21: 5695864 | T21: 86 | U21: 233 | V21: 120 | W21: 30 | X21: M_SP_TB_1 | Z21: VYPNUTO | AA21: ZAPNUTO
B22: TS1234 | C22: NNO | D22: VMS | E22: S | F22: SPG030 | G22: Stupeň regulace P - výroba 30% - nastaveno | H22: TS1234.NNO.VMS.S.SPG030 | J22: 41234 | K22: 161 | L22: 18 | M22: 5 | N22: 120 | O22: 6 | P22: 234 | Q22: 0 | R22: OK | S22: 5696120 | T22: 86 | U22: 234 | V22: 120 | W22: 30 | X22: M_SP_TB_1 | Z22: VYPNUTO | AA22: ZAPNUTO
B23: TS1234 | C23: NNO | D23: VMS | E23: S | F23: SPG000 | G23: Stupeň regulace P - výroba 0% - nastaveno | H23: TS1234.NNO.VMS.S.SPG000 | J23: 41234 | K23: 161 | L23: 18 | M23: 5 | N23: 120 | O23: 6 | P23: 235 | Q23: 0 | R23: OK | S23: 5696376 | T23: 86 | U23: 235 | V23: 120 | W23: 30 | X23: M_SP_TB_1 | Z23: VYPNUTO | AA23: ZAPNUTO
B24: TS1234 | C24: NNO | D24: VMS | E24: Z | F24: SPFG090C | G24: Stupeň regulace cos fi - 0.90C - nastavit | H24: TS1234.NNO.VMS.Z.SPFG090C | J24: 41234 | K24: 161 | L24: 18 | M24: 5 | N24: 120 | O24: 12 | P24: 127 | Q24: 0 | R24: OK | S24: 6061944 | T24: 92 | U24: 127 | V24: 120 | W24: 45 | X24: C_SC_NA_1 | Z24: VYPNOUT | AA24: ZAPNOUT
B25: TS1234 | C25: NNO | D25: VMS | E25: Z | F25: SPFG095C | G25: Stupeň regulace cos fi - 0.95C - nastavit | H25: TS1234.NNO.VMS.Z.SPFG095C | J25: 41234 | K25: 161 | L25: 18 | M25: 5 | N25: 120 | O25: 12 | P25: 128 | Q25: 0 | R25: OK | S25: 6062200 | T25: 92 | U25: 128 | V25: 120 | W25: 45 | X25: C_SC_NA_1 | Z25: VYPNOUT | AA25: ZAPNOUT
B26: TS1234 | C26: NNO | D26: VMS | E26: Z | F26: SPFG100 | G26: Stupeň regulace cos fi - 1.00 - nastavit | H26: TS1234.NNO.VMS.Z.SPFG100 | J26: 41234 | K26: 161 | L26: 18 | M26: 5 | N26: 120 | O26: 12 | P26: 129 | Q26: 0 | R26: OK | S26: 6062456 | T26: 92 | U26: 129 | V26: 120 | W26: 45 | X26: C_SC_NA_1 | Z26: VYPNOUT | AA26: ZAPNOUT
B27: TS1234 | C27: NNO | D27: VMS | E27: Z | F27: SPFG095L | G27: Stupeň regulace cos fi - 0.95L - nastavit | H27: TS1234.NNO.VMS.Z.SPFG095L | J27: 41234 | K27: 161 | L27: 18 | M27: 5 | N27: 120 | O27: 12 | P27: 130 | Q27: 0 | R27: OK | S27: 6062712 | T27: 92 | U27: 130 | V27: 120 | W27: 45 | X27: C_SC_NA_1 | Z27: VYPNOUT | AA27: ZAPNOUT
B28: TS1234 | C28: NNO | D28: VMS | E28: Z | F28: SPFG090L | G28: Stupeň regulace cos fi - 0.90L - nastavit | H28: TS1234.NNO.VMS.Z.SPFG090L | J28: 41234 | K28: 161 | L28: 18 | M28: 5 | N28: 120 | O28: 12 | P28: 131 | Q28: 0 | R28: OK | S28: 6062968 | T28: 92 | U28: 131 | V28: 120 | W28: 45 | X28: C_SC_NA_1 | Z28: VYPNOUT | AA28: ZAPNOUT
B29: TS1234 | C29: NNO | D29: VMS | E29: S | F29: SPFG090C | G29: Stupeň regulace cos fi - 0.90C - nastaveno | H29: TS1234.NNO.VMS.S.SPFG090C | J29: 41234 | K29: 161 | L29: 18 | M29: 5 | N29: 120 | O29: 6 | P29: 226 | Q29: 0 | R29: OK | S29: 5694072 | T29: 86 | U29: 226 | V29: 120 | W29: 30 | X29: M_SP_TB_1 | Z29: VYPNUTO | AA29: ZAPNUTO
B30: TS1234 | C30: NNO | D30: VMS | E30: S | F30: SPFG095C | G30: Stupeň regulace cos fi - 0.95C - nastaveno | H30: TS1234.NNO.VMS.S.SPFG095C | J30: 41234 | K30: 161 | L30: 18 | M30: 5 | N30: 120 | O30: 6 | P30: 227 | Q30: 0 | R30: OK | S30: 5694328 | T30: 86 | U30: 227 | V30: 120 | W30: 30 | X30: M_SP_TB_1 | Z30: VYPNUTO | AA30: ZAPNUTO
B31: TS1234 | C31: NNO | D31: VMS | E31: S | F31: SPFG100 | G31: Stupeň regulace cos fi - 1.00 - nastaveno | H31: TS1234.NNO.VMS.S.SPFG100 | J31: 41234 | K31: 161 | L31: 18 | M31: 5 | N31: 120 | O31: 6 | P31: 228 | Q31: 0 | R31: OK | S31: 5694584 | T31: 86 | U31: 228 | V31: 120 | W31: 30 | X31: M_SP_TB_1 | Z31: VYPNUTO | AA31: ZAPNUTO
B32: TS1234 | C32: NNO | D32: VMS | E32: S | F32: SPFG095L | G32: Stupeň regulace cos fi - 0.95L - nastaveno | H32: TS1234.NNO.VMS.S.SPFG095L | J32: 41234 | K32: 161 | L32: 18 | M32: 5 | N32: 120 | O32: 6 | P32: 229 | Q32: 0 | R32: OK | S32: 5694840 | T32: 86 | U32: 229 | V32: 120 | W32: 30 | X32: M_SP_TB_1 | Z32: VYPNUTO | AA32: ZAPNUTO
B33: TS1234 | C33: NNO | D33: VMS | E33: S | F33: SPFG090L | G33: Stupeň regulace cos fi - 0.90L - nastaveno | H33: TS1234.NNO.VMS.S.SPFG090L | J33: 41234 | K33: 161 | L33: 18 | M33: 5 | N33: 120 | O33: 6 | P33: 230 | Q33: 0 | R33: OK | S33: 5695096 | T33: 86 | U33: 230 | V33: 120 | W33: 30 | X33: M_SP_TB_1 | Z33: VYPNUTO | AA33: ZAPNUTO
B34: TS1234 | C34: NNO | D34: VM1 | E34: S | F34: QM | G34: Vypínač QM - stav | H34: TS1234.NNO.VM1.S.QM | J34: 41234 | K34: 161 | L34: 18 | M34: 5 | N34: 121 | O34: 0 | P34: 1 | Q34: 0 | R34: OK | S34: 5243257 | T34: 80 | U34: 1 | V34: 121 | W34: 31 | X34: M_DP_TB_1 | Z34: MEZIPOLOHA | AA34: VYPNUTO | AB34: ZAPNUTO | AC34: PORUCHA
B35: TS1234 | C35: NNO | D35: VM1 | E35: P | F35: H100T | G35: Ochrany - působení ochran | H35: TS1234.NNO.VM1.P.H100T | J35: 41234 | K35: 161 | L35: 18 | M35: 5 | N35: 121 | O35: 1 | P35: 1 | Q35: 0 | R35: OK | S35: 5308793 | T35: 81 | U35: 1 | V35: 121 | W35: 30 | X35: M_SP_TB_1 | Z35: KONEC | AA35: ZAČÁTEK
B36: TS1234 | C36: NNO | D36: VM1 | E36: P | F36: H100IF | G36: Ochrany - vnitřní porucha | H36: TS1234.NNO.VM1.P.H100IF | J36: 41234 | K36: 161 | L36: 18 | M36: 5 | N36: 121 | O36: 2 | P36: 17 | Q36: 0 | R36: OK | S36: 5378425 | T36: 82 | U36: 17 | V36: 121 | W36: 30 | X36: M_SP_TB_1 | Z36: KONEC | AA36: ZAČÁTEK
B37: TS1234 | C37: NNO | D37: VM2 | E37: S | F37: QM | G37: Vypínač QM - stav | H37: TS1234.NNO.VM2.S.QM | J37: 41234 | K37: 161 | L37: 18 | M37: 5 | N37: 122 | O37: 0 | P37: 1 | Q37: 0 | R37: OK | S37: 5243258 | T37: 80 | U37: 1 | V37: 122 | W37: 31 | X37: M_DP_TB_1 | Z37: MEZIPOLOHA | AA37: VYPNUTO | AB37: ZAPNUTO | AC37: PORUCHA
B38: TS1234 | C38: NNO | D38: VM2 | E38: P | F38: H100T | G38: Ochrany - působení ochran | H38: TS1234.NNO.VM2.P.H100T | J38: 41234 | K38: 161 | L38: 18 | M38: 5 | N38: 122 | O38: 1 | P38: 1 | Q38: 0 | R38: OK | S38: 5308794 | T38: 81 | U38: 1 | V38: 122 | W38: 30 | X38: M_SP_TB_1 | Z38: KONEC | AA38: ZAČÁTEK
B39: TS1234 | C39: NNO | D39: VM2 | E39: P | F39: H100IF | G39: Ochrany - vnitřní porucha | H39: TS1234.NNO.VM2.P.H100IF | J39: 41234 | K39: 161 | L39: 18 | M39: 5 | N39: 122 | O39: 2 | P39: 17 | Q39: 0 | R39: OK | S39: 5378426 | T39: 82 | U39: 17 | V39: 122 | W39: 30 | X39: M_SP_TB_1 | Z39: KONEC | AA39: ZAČÁTEK

Sheet H298CEB
B1: Zjednodušené logické schéma blokování zapnutí výrobny, v přípdě jednoho jistícího prvku pro oddělovací a rozpadové místo
B3: povel VYP z automatiky výrobny | M3: OR | Q3: výstup VYP na vypínač (oddělovací místo)
B9: povel na blokování ZAP z ED PREdi (H298CEB) | I9: S | J9: RS
K10: Q | Q10: signalizace blokování na ED PREdi (H298CEB)
B11: povel na blokování VYP z ED PREdi (H298CEB) | I11: R
M14: NOT | O14: AND
M15: (negace) | Q15: výstup ZAP na vypínač (oddělovací místo)
B16: povel ZAP z automatiky výrobny

Sheet Seznam signálů
A1: x | B1: Seznam signálů SCADA - Výrobny
A2: x | B2: TS 1234-VM
A3: x
B4: Textová adresa (TA) | J4: IEC-60870-5-101 | Z4: Interpretace dat
A5: Příznak | B5: Číslo stanice PREdi | C5: Napěťová hladina | D5: Číslo pole | E5: Typ signálu | F5: Normované označení | G5: Název signálu | H5: Textová adresa | J5: ASDU Address | K5: ASDU High Byte | L5: ASDU Low Byte | M5: Pomocné | R5: ="Počet duplicit v IOA = " &COUNTIF(R7:R59, "DUPLICITA") -> Počet duplicit v IOA = 0 | S5: =IF(COUNTIF(R7:R59, "DUPLICITA")>0,"DUPLICITA","Information Object Address") -> Information Object Address | T5: IOA High Byte | U5: IOA Mid Byte | V5: IOA Low Byte | W5: Datový typ | Z5: 0 / 00 | AA5: 1 / 01 | AB5: 10 | AC5: 11 | AD5: Jednotka | AF5: Poznámka
A6: P | B6: TA_STA | C6: TA_NAP | D6: TA_POLE | E6: TA_TYP | F6: TA_OZN | G6: TA_Popis | H6: TA_ADR | I6: x | J6: CAASDU_suma | K6: CAASDU2 | L6: CAASDU1 | M6: A | N6: B | O6: C | P6: D | Q6: E | R6: ="IOA = " &COUNTIF(R7:R59, "DUPLICITA") -> IOA = 0 | S6: IOA_suma | T6: IOA3 | U6: IOA2 | V6: IOA1 | W6: TI_IEC | X6: TI_OZN | Y6: x | Z6: LAB0 | AA6: LAB1 | AB6: LAB2 | AC6: LAB3 | AD6: UNIT | AE6: x | AF6: POZN
B7: TS1234 | C7: NNO | D7: VMS | E7: Z | F7: QM | G7: =IF(F7<>"",VLOOKUP(E7&"|"&F7,'IO-KOD'!$A$1:$E$70,5,0),"") -> Vypínač QM - povel | H7: =IF(F7<>"",SUBSTITUTE(B7&"."&C7&"."&D7&"."&E7&"."&F7," ",""),"") -> TS1234.NNO.VMS.Z.QM | J7: =IF(F7<>"",MID(B7,3,10)+40000,"") -> 41234 | K7: =IF(J7<>"",INT(MOD(J7,65536)/256),"") -> 161 | L7: =IF(J7<>"",MOD(J7,256),"") -> 18 | M7: =IF(F7<>"",VLOOKUP(C7,Nap.hladiny!$A:$D,2,0),"") -> 5 | N7: =IF(F7<>"",VLOOKUP(D7,Pole!$A:$B,2,0),"") -> 120 | O7: =IF(F7<>"",VLOOKUP(E7&"|"&F7,'IO-KOD'!$A$1:$E$70,3,0),"") -> 10 | P7: =IF(F7<>"",VLOOKUP(E7&"|"&F7,'IO-KOD'!$A$1:$E$70,4,0),"") -> 1 | Q7: =IF(F7<>"",VLOOKUP(C7,Nap.hladiny!$A:$D,3,0),"") -> 0 | R7: =IF(F7<>"",IF(AND(COUNTIFS($S$7:$S$499, S7,$A$7:$A$499,"<>N")>1, S7<>"",A7<>"N"), "DUPLICITA", "OK"),"") -> OK | S7: =IF(F7="","",(M7*2^20)+(O7*2^16)+(P7*2^8)+(Q7*2^7)+N7) -> 5898616 | T7: =IF(S7<>"",(S7-(U7*256)-V7)/65536,"") -> 90 | U7: =IF(S7<>"",INT(MOD(S7,65536)/256),"") -> 1 | V7: =IF(S7<>"",MOD(S7,256),"") -> 120 | W7: =IF(F7<>"",VLOOKUP(E7&"|"&F7,'IO-KOD'!$A$1:$H$70,8,0),"") -> 46 | X7: =IF(W7<>"",VLOOKUP(W7,'104-TI'!$A:$B,2,0),"") -> C_DC_NA_1 | Z7: =IF(F7<>"",VLOOKUP(E7&"|"&F7,'IO-KOD'!$A$1:$M$70,9,0),"") -> - | AA7: =IF(F7<>"",VLOOKUP(E7&"|"&F7,'IO-KOD'!$A$1:$M$70,10,0),"") -> VYPNOUT | AB7: =IF(F7<>"",VLOOKUP(E7&"|"&F7,'IO-KOD'!$A$1:$M$70,11,0),"") -> ZAPNOUT | AC7: =IF(F7<>"",VLOOKUP(E7&"|"&F7,'IO-KOD'!$A$1:$M$70,12,0),"") -> - | AD7: =IF(F7<>"",VLOOKUP(E7&"|"&F7,'IO-KOD'!$A$1:$M$70,13,0),"") -> -
B8: TS1234 | C8: NNO | D8: VMS | E8: S | F8: QM | G8: =IF(F8<>"",VLOOKUP(E8&"|"&F8,'IO-KOD'!$A$1:$E$70,5,0),"") -> Vypínač QM - stav | H8: TS1234.NNO.VMS.S.QM | J8: =IF(F8<>"",MID(B8,3,10)+40000,"") -> 41234 | K8: 161 | L8: 18 | M8: =IF(F8<>"",VLOOKUP(C8,Nap.hladiny!$A:$D,2,0),"") -> 5 | N8: =IF(F8<>"",VLOOKUP(D8,Pole!$A:$B,2,0),"") -> 120 | O8: =IF(F8<>"",VLOOKUP(E8&"|"&F8,'IO-KOD'!$A$1:$E$70,3,0),"") -> 0 | P8: =IF(F8<>"",VLOOKUP(E8&"|"&F8,'IO-KOD'!$A$1:$E$70,4,0),"") -> 1 | Q8: =IF(F8<>"",VLOOKUP(C8,Nap.hladiny!$A:$D,3,0),"") -> 0 | R8: OK | S8: =IF(F8="","",(M8*2^20)+(O8*2^16)+(P8*2^8)+(Q8*2^7)+N8) -> 5243256 | T8: 80 | U8: 1 | V8: 120 | W8: =IF(F8<>"",VLOOKUP(E8&"|"&F8,'IO-KOD'!$A$1:$H$70,8,0),"") -> 31 | X8: =IF(W8<>"",VLOOKUP(W8,'104-TI'!$A:$B,2,0),"") -> M_DP_TB_1 | Z8: =IF(F8<>"",VLOOKUP(E8&"|"&F8,'IO-KOD'!$A$1:$M$70,9,0),"") -> MEZIPOLOHA | AA8: =IF(F8<>"",VLOOKUP(E8&"|"&F8,'IO-KOD'!$A$1:$M$70,10,0),"") -> VYPNUTO | AB8: =IF(F8<>"",VLOOKUP(E8&"|"&F8,'IO-KOD'!$A$1:$M$70,11,0),"") -> ZAPNUTO | AC8: =IF(F8<>"",VLOOKUP(E8&"|"&F8,'IO-KOD'!$A$1:$M$70,12,0),"") -> PORUCHA | AD8: =IF(F8<>"",VLOOKUP(E8&"|"&F8,'IO-KOD'!$A$1:$M$70,13,0),"") -> -
B9: TS1234 | C9: NNO | D9: VMS | E9: M | F9: UL2 | G9: =IF(F9<>"",VLOOKUP(E9&"|"&F9,'IO-KOD'!$A$1:$E$70,5,0),"") -> Měření fázového napětí UL2 | H9: TS1234.NNO.VMS.M.UL2 | J9: 41234 | K9: 161 | L9: 18 | M9: =IF(F9<>"",VLOOKUP(C9,Nap.hladiny!$A:$D,2,0),"") -> 5 | N9: =IF(F9<>"",VLOOKUP(D9,Pole!$A:$B,2,0),"") -> 120 | O9: =IF(F9<>"",VLOOKUP(E9&"|"&F9,'IO-KOD'!$A$1:$E$70,3,0),"") -> 13 | P9: =IF(F9<>"",VLOOKUP(E9&"|"&F9,'IO-KOD'!$A$1:$E$70,4,0),"") -> 10 | Q9: =IF(F9<>"",VLOOKUP(C9,Nap.hladiny!$A:$D,3,0),"") -> 0 | R9: OK | S9: 6097528 | T9: 93 | U9: 10 | V9: 120 | W9: =IF(F9<>"",VLOOKUP(E9&"|"&F9,'IO-KOD'!$A$1:$H$70,8,0),"") -> 13 | X9: =IF(W9<>"",VLOOKUP(W9,'104-TI'!$A:$B,2,0),"") -> M_ME_NC_1 | Z9: =IF(F9<>"",VLOOKUP(E9&"|"&F9,'IO-KOD'!$A$1:$M$70,9,0),"") -> - | AA9: =IF(F9<>"",VLOOKUP(E9&"|"&F9,'IO-KOD'!$A$1:$M$70,10,0),"") -> - | AB9: =IF(F9<>"",VLOOKUP(E9&"|"&F9,'IO-KOD'!$A$1:$M$70,11,0),"") -> - | AC9: =IF(F9<>"",VLOOKUP(E9&"|"&F9,'IO-KOD'!$A$1:$M$70,12,0),"") -> - | AD9: =IF(F9<>"",VLOOKUP(E9&"|"&F9,'IO-KOD'!$A$1:$M$70,13,0),"") -> V
B10: TS1234 | C10: NNO | D10: VMS | E10: M | F10: IL2 | G10: =IF(F10<>"",VLOOKUP(E10&"|"&F10,'IO-KOD'!$A$1:$E$70,5,0),"") -> Měření proudu IL2 | H10: TS1234.NNO.VMS.M.IL2 | J10: 41234 | K10: 161 | L10: 18 | M10: =IF(F10<>"",VLOOKUP(C10,Nap.hladiny!$A:$D,2,0),"") -> 5 | N10: =IF(F10<>"",VLOOKUP(D10,Pole!$A:$B,2,0),"") -> 120 | O10: =IF(F10<>"",VLOOKUP(E10&"|"&F10,'IO-KOD'!$A$1:$E$70,3,0),"") -> 13 | P10: =IF(F10<>"",VLOOKUP(E10&"|"&F10,'IO-KOD'!$A$1:$E$70,4,0),"") -> 2 | Q10: =IF(F10<>"",VLOOKUP(C10,Nap.hladiny!$A:$D,3,0),"") -> 0 | R10: OK | S10: 6095480 | T10: 93 | U10: 2 | V10: 120 | W10: =IF(F10<>"",VLOOKUP(E10&"|"&F10,'IO-KOD'!$A$1:$H$70,8,0),"") -> 13 | X10: =IF(W10<>"",VLOOKUP(W10,'104-TI'!$A:$B,2,0),"") -> M_ME_NC_1 | Z10: =IF(F10<>"",VLOOKUP(E10&"|"&F10,'IO-KOD'!$A$1:$M$70,9,0),"") -> - | AA10: =IF(F10<>"",VLOOKUP(E10&"|"&F10,'IO-KOD'!$A$1:$M$70,10,0),"") -> - | AB10: =IF(F10<>"",VLOOKUP(E10&"|"&F10,'IO-KOD'!$A$1:$M$70,11,0),"") -> - | AC10: =IF(F10<>"",VLOOKUP(E10&"|"&F10,'IO-KOD'!$A$1:$M$70,12,0),"") -> - | AD10: =IF(F10<>"",VLOOKUP(E10&"|"&F10,'IO-KOD'!$A$1:$M$70,13,0),"") -> A
B11: TS1234 | C11: NNO | D11: VMS | E11: M | F11: P | G11: =IF(F11<>"",VLOOKUP(E11&"|"&F11,'IO-KOD'!$A$1:$E$70,5,0),"") -> Měření činného výkonu P | H11: TS1234.NNO.VMS.M.P | J11: 41234 | K11: 161 | L11: 18 | M11: =IF(F11<>"",VLOOKUP(C11,Nap.hladiny!$A:$D,2,0),"") -> 5 | N11: =IF(F11<>"",VLOOKUP(D11,Pole!$A:$B,2,0),"") -> 120 | O11: =IF(F11<>"",VLOOKUP(E11&"|"&F11,'IO-KOD'!$A$1:$E$70,3,0),"") -> 13 | P11: =IF(F11<>"",VLOOKUP(E11&"|"&F11,'IO-KOD'!$A$1:$E$70,4,0),"") -> 22 | Q11: =IF(F11<>"",VLOOKUP(C11,Nap.hladiny!$A:$D,3,0),"") -> 0 | R11: OK | S11: 6100600 | T11: 93 | U11: 22 | V11: 120 | W11: =IF(F11<>"",VLOOKUP(E11&"|"&F11,'IO-KOD'!$A$1:$H$70,8,0),"") -> 13 | X11: =IF(W11<>"",VLOOKUP(W11,'104-TI'!$A:$B,2,0),"") -> M_ME_NC_1 | Z11: =IF(F11<>"",VLOOKUP(E11&"|"&F11,'IO-KOD'!$A$1:$M$70,9,0),"") -> - | AA11: =IF(F11<>"",VLOOKUP(E11&"|"&F11,'IO-KOD'!$A$1:$M$70,10,0),"") -> - | AB11: =IF(F11<>"",VLOOKUP(E11&"|"&F11,'IO-KOD'!$A$1:$M$70,11,0),"") -> - | AC11: =IF(F11<>"",VLOOKUP(E11&"|"&F11,'IO-KOD'!$A$1:$M$70,12,0),"") -> - | AD11: =IF(F11<>"",VLOOKUP(E11&"|"&F11,'IO-KOD'!$A$1:$M$70,13,0),"") -> kW
B12: TS1234 | C12: NNO | D12: VMS | E12: M | F12: Q | G12: =IF(F12<>"",VLOOKUP(E12&"|"&F12,'IO-KOD'!$A$1:$E$70,5,0),"") -> Měření jalového výkonu Q | H12: TS1234.NNO.VMS.M.Q | J12: 41234 | K12: 161 | L12: 18 | M12: =IF(F12<>"",VLOOKUP(C12,Nap.hladiny!$A:$D,2,0),"") -> 5 | N12: =IF(F12<>"",VLOOKUP(D12,Pole!$A:$B,2,0),"") -> 120 | O12: =IF(F12<>"",VLOOKUP(E12&"|"&F12,'IO-KOD'!$A$1:$E$70,3,0),"") -> 13 | P12: =IF(F12<>"",VLOOKUP(E12&"|"&F12,'IO-KOD'!$A$1:$E$70,4,0),"") -> 23 | Q12: =IF(F12<>"",VLOOKUP(C12,Nap.hladiny!$A:$D,3,0),"") -> 0 | R12: OK | S12: 6100856 | T12: 93 | U12: 23 | V12: 120 | W12: =IF(F12<>"",VLOOKUP(E12&"|"&F12,'IO-KOD'!$A$1:$H$70,8,0),"") -> 13 | X12: =IF(W12<>"",VLOOKUP(W12,'104-TI'!$A:$B,2,0),"") -> M_ME_NC_1 | Z12: =IF(F12<>"",VLOOKUP(E12&"|"&F12,'IO-KOD'!$A$1:$M$70,9,0),"") -> - | AA12: =IF(F12<>"",VLOOKUP(E12&"|"&F12,'IO-KOD'!$A$1:$M$70,10,0),"") -> - | AB12: =IF(F12<>"",VLOOKUP(E12&"|"&F12,'IO-KOD'!$A$1:$M$70,11,0),"") -> - | AC12: =IF(F12<>"",VLOOKUP(E12&"|"&F12,'IO-KOD'!$A$1:$M$70,12,0),"") -> - | AD12: =IF(F12<>"",VLOOKUP(E12&"|"&F12,'IO-KOD'!$A$1:$M$70,13,0),"") -> kvar
B13: TS1234 | C13: NNO | D13: VMS | E13: Z | F13: QM_TEST | G13: =IF(F13<>"",VLOOKUP(E13&"|"&F13,'IO-KOD'!$A$1:$E$70,5,0),"") -> Zkušební vypínač - povel | H13: TS1234.NNO.VMS.Z.QM_TEST | J13: 41234 | K13: 161 | L13: 18 | M13: =IF(F13<>"",VLOOKUP(C13,Nap.hladiny!$A:$D,2,0),"") -> 5 | N13: =IF(F13<>"",VLOOKUP(D13,Pole!$A:$B,2,0),"") -> 120 | O13: =IF(F13<>"",VLOOKUP(E13&"|"&F13,'IO-KOD'!$A$1:$E$70,3,0),"") -> 10 | P13: =IF(F13<>"",VLOOKUP(E13&"|"&F13,'IO-KOD'!$A$1:$E$70,4,0),"") -> 255 | Q13: =IF(F13<>"",VLOOKUP(C13,Nap.hladiny!$A:$D,3,0),"") -> 0 | R13: OK | S13: 5963640 | T13: 90 | U13: 255 | V13: 120 | W13: =IF(F13<>"",VLOOKUP(E13&"|"&F13,'IO-KOD'!$A$1:$H$70,8,0),"") -> 46 | X13: =IF(W13<>"",VLOOKUP(W13,'104-TI'!$A:$B,2,0),"") -> C_DC_NA_1 | Z13: =IF(F13<>"",VLOOKUP(E13&"|"&F13,'IO-KOD'!$A$1:$M$70,9,0),"") -> - | AA13: =IF(F13<>"",VLOOKUP(E13&"|"&F13,'IO-KOD'!$A$1:$M$70,10,0),"") -> VYPNOUT | AB13: =IF(F13<>"",VLOOKUP(E13&"|"&F13,'IO-KOD'!$A$1:$M$70,11,0),"") -> ZAPNOUT | AC13: =IF(F13<>"",VLOOKUP(E13&"|"&F13,'IO-KOD'!$A$1:$M$70,12,0),"") -> - | AD13: =IF(F13<>"",VLOOKUP(E13&"|"&F13,'IO-KOD'!$A$1:$M$70,13,0),"") -> -
B14: TS1234 | C14: NNO | D14: VMS | E14: S | F14: QM_TEST | G14: =IF(F14<>"",VLOOKUP(E14&"|"&F14,'IO-KOD'!$A$1:$E$70,5,0),"") -> Zkušební vypínač - stav | H14: TS1234.NNO.VMS.S.QM_TEST | J14: 41234 | K14: 161 | L14: =IF(J14<>"",MOD(J14,256),"") -> 18 | M14: =IF(F14<>"",VLOOKUP(C14,Nap.hladiny!$A:$D,2,0),"") -> 5 | N14: =IF(F14<>"",VLOOKUP(D14,Pole!$A:$B,2,0),"") -> 120 | O14: =IF(F14<>"",VLOOKUP(E14&"|"&F14,'IO-KOD'!$A$1:$E$70,3,0),"") -> 0 | P14: =IF(F14<>"",VLOOKUP(E14&"|"&F14,'IO-KOD'!$A$1:$E$70,4,0),"") -> 255 | Q14: =IF(F14<>"",VLOOKUP(C14,Nap.hladiny!$A:$D,3,0),"") -> 0 | R14: OK | S14: 5308280 | T14: 80 | U14: 255 | V14: 120 | W14: =IF(F14<>"",VLOOKUP(E14&"|"&F14,'IO-KOD'!$A$1:$H$70,8,0),"") -> 31 | X14: =IF(W14<>"",VLOOKUP(W14,'104-TI'!$A:$B,2,0),"") -> M_DP_TB_1 | Z14: =IF(F14<>"",VLOOKUP(E14&"|"&F14,'IO-KOD'!$A$1:$M$70,9,0),"") -> MEZIPOLOHA | AA14: =IF(F14<>"",VLOOKUP(E14&"|"&F14,'IO-KOD'!$A$1:$M$70,10,0),"") -> VYPNUTO | AB14: =IF(F14<>"",VLOOKUP(E14&"|"&F14,'IO-KOD'!$A$1:$M$70,11,0),"") -> ZAPNUTO | AC14: =IF(F14<>"",VLOOKUP(E14&"|"&F14,'IO-KOD'!$A$1:$M$70,12,0),"") -> PORUCHA | AD14: =IF(F14<>"",VLOOKUP(E14&"|"&F14,'IO-KOD'!$A$1:$M$70,13,0),"") -> -
B15: TS1234 | C15: NNO | D15: VMS | E15: P | F15: H835L | G15: =IF(F15<>"",VLOOKUP(E15&"|"&F15,'IO-KOD'!$A$1:$E$70,5,0),"") -> Stejnosměrné napájení ovládání - ztráta napětí | H15: TS1234.NNO.VMS.P.H835L | J15: 41234 | K15: 161 | L15: 18 | M15: =IF(F15<>"",VLOOKUP(C15,Nap.hladiny!$A:$D,2,0),"") -> 5 | N15: =IF(F15<>"",VLOOKUP(D15,Pole!$A:$B,2,0),"") -> 120 | O15: =IF(F15<>"",VLOOKUP(E15&"|"&F15,'IO-KOD'!$A$1:$E$70,3,0),"") -> 7 | P15: =IF(F15<>"",VLOOKUP(E15&"|"&F15,'IO-KOD'!$A$1:$E$70,4,0),"") -> 128 | Q15: =IF(F15<>"",VLOOKUP(C15,Nap.hladiny!$A:$D,3,0),"") -> 0 | R15: OK | S15: 5734520 | T15: 87 | U15: 128 | V15: 120 | W15: =IF(F15<>"",VLOOKUP(E15&"|"&F15,'IO-KOD'!$A$1:$H$70,8,0),"") -> 30 | X15: =IF(W15<>"",VLOOKUP(W15,'104-TI'!$A:$B,2,0),"") -> M_SP_TB_1 | Z15: =IF(F15<>"",VLOOKUP(E15&"|"&F15,'IO-KOD'!$A$1:$M$70,9,0),"") -> KONEC | AA15: =IF(F15<>"",VLOOKUP(E15&"|"&F15,'IO-KOD'!$A$1:$M$70,10,0),"") -> ZAČÁTEK | AB15: =IF(F15<>"",VLOOKUP(E15&"|"&F15,'IO-KOD'!$A$1:$M$70,11,0),"") -> - | AC15: =IF(F15<>"",VLOOKUP(E15&"|"&F15,'IO-KOD'!$A$1:$M$70,12,0),"") -> - | AD15: =IF(F15<>"",VLOOKUP(E15&"|"&F15,'IO-KOD'!$A$1:$M$70,13,0),"") -> -
B16: TS1234 | C16: NNO | D16: VMS | E16: Z | F16: SPG100 | G16: =IF(F16<>"",VLOOKUP(E16&"|"&F16,'IO-KOD'!$A$1:$E$70,5,0),"") -> Stupeň regulace P - výroba 100% - nastavit | H16: TS1234.NNO.VMS.Z.SPG100 | J16: 41234 | K16: 161 | L16: 18 | M16: =IF(F16<>"",VLOOKUP(C16,Nap.hladiny!$A:$D,2,0),"") -> 5 | N16: =IF(F16<>"",VLOOKUP(D16,Pole!$A:$B,2,0),"") -> 120 | O16: =IF(F16<>"",VLOOKUP(E16&"|"&F16,'IO-KOD'!$A$1:$E$70,3,0),"") -> 12 | P16: =IF(F16<>"",VLOOKUP(E16&"|"&F16,'IO-KOD'!$A$1:$E$70,4,0),"") -> 81 | Q16: =IF(F16<>"",VLOOKUP(C16,Nap.hladiny!$A:$D,3,0),"") -> 0 | R16: OK | S16: 6050168 | T16: 92 | U16: 81 | V16: 120 | W16: =IF(F16<>"",VLOOKUP(E16&"|"&F16,'IO-KOD'!$A$1:$H$70,8,0),"") -> 45 | X16: =IF(W16<>"",VLOOKUP(W16,'104-TI'!$A:$B,2,0),"") -> C_SC_NA_1 | Z16: =IF(F16<>"",VLOOKUP(E16&"|"&F16,'IO-KOD'!$A$1:$M$70,9,0),"") -> VYPNOUT | AA16: =IF(F16<>"",VLOOKUP(E16&"|"&F16,'IO-KOD'!$A$1:$M$70,10,0),"") -> ZAPNOUT | AB16: =IF(F16<>"",VLOOKUP(E16&"|"&F16,'IO-KOD'!$A$1:$M$70,11,0),"") -> - | AC16: =IF(F16<>"",VLOOKUP(E16&"|"&F16,'IO-KOD'!$A$1:$M$70,12,0),"") -> - | AD16: =IF(F16<>"",VLOOKUP(E16&"|"&F16,'IO-KOD'!$A$1:$M$70,13,0),"") -> -
B17: TS1234 | C17: NNO | D17: VMS | E17: Z | F17: SPG060 | G17: =IF(F17<>"",VLOOKUP(E17&"|"&F17,'IO-KOD'!$A$1:$E$70,5,0),"") -> Stupeň regulace P - výroba 60% - nastavit | H17: TS1234.NNO.VMS.Z.SPG060 | J17: 41234 | K17: 161 | L17: 18 | M17: =IF(F17<>"",VLOOKUP(C17,Nap.hladiny!$A:$D,2,0),"") -> 5 | N17: =IF(F17<>"",VLOOKUP(D17,Pole!$A:$B,2,0),"") -> 120 | O17: =IF(F17<>"",VLOOKUP(E17&"|"&F17,'IO-KOD'!$A$1:$E$70,3,0),"") -> 12 | P17: =IF(F17<>"",VLOOKUP(E17&"|"&F17,'IO-KOD'!$A$1:$E$70,4,0),"") -> 82 | Q17: =IF(F17<>"",VLOOKUP(C17,Nap.hladiny!$A:$D,3,0),"") -> 0 | R17: OK | S17: 6050424 | T17: 92 | U17: 82 | V17: 120 | W17: =IF(F17<>"",VLOOKUP(E17&"|"&F17,'IO-KOD'!$A$1:$H$70,8,0),"") -> 45 | X17: =IF(W17<>"",VLOOKUP(W17,'104-TI'!$A:$B,2,0),"") -> C_SC_NA_1 | Z17: =IF(F17<>"",VLOOKUP(E17&"|"&F17,'IO-KOD'!$A$1:$M$70,9,0),"") -> VYPNOUT | AA17: =IF(F17<>"",VLOOKUP(E17&"|"&F17,'IO-KOD'!$A$1:$M$70,10,0),"") -> ZAPNOUT | AB17: =IF(F17<>"",VLOOKUP(E17&"|"&F17,'IO-KOD'!$A$1:$M$70,11,0),"") -> - | AC17: =IF(F17<>"",VLOOKUP(E17&"|"&F17,'IO-KOD'!$A$1:$M$70,12,0),"") -> - | AD17: =IF(F17<>"",VLOOKUP(E17&"|"&F17,'IO-KOD'!$A$1:$M$70,13,0),"") -> -
B18: TS1234 | C18: NNO | D18: VMS | E18: Z | F18: SPG030 | G18: =IF(F18<>"",VLOOKUP(E18&"|"&F18,'IO-KOD'!$A$1:$E$70,5,0),"") -> Stupeň regulace P - výroba 30% - nastavit | H18: TS1234.NNO.VMS.Z.SPG030 | J18: 41234 | K18: 161 | L18: 18 | M18: =IF(F18<>"",VLOOKUP(C18,Nap.hladiny!$A:$D,2,0),"") -> 5 | N18: =IF(F18<>"",VLOOKUP(D18,Pole!$A:$B,2,0),"") -> 120 | O18: =IF(F18<>"",VLOOKUP(E18&"|"&F18,'IO-KOD'!$A$1:$E$70,3,0),"") -> 12 | P18: =IF(F18<>"",VLOOKUP(E18&"|"&F18,'IO-KOD'!$A$1:$E$70,4,0),"") -> 83 | Q18: =IF(F18<>"",VLOOKUP(C18,Nap.hladiny!$A:$D,3,0),"") -> 0 | R18: OK | S18: 6050680 | T18: 92 | U18: 83 | V18: 120 | W18: =IF(F18<>"",VLOOKUP(E18&"|"&F18,'IO-KOD'!$A$1:$H$70,8,0),"") -> 45 | X18: =IF(W18<>"",VLOOKUP(W18,'104-TI'!$A:$B,2,0),"") -> C_SC_NA_1 | Z18: =IF(F18<>"",VLOOKUP(E18&"|"&F18,'IO-KOD'!$A$1:$M$70,9,0),"") -> VYPNOUT | AA18: =IF(F18<>"",VLOOKUP(E18&"|"&F18,'IO-KOD'!$A$1:$M$70,10,0),"") -> ZAPNOUT | AB18: =IF(F18<>"",VLOOKUP(E18&"|"&F18,'IO-KOD'!$A$1:$M$70,11,0),"") -> - | AC18: =IF(F18<>"",VLOOKUP(E18&"|"&F18,'IO-KOD'!$A$1:$M$70,12,0),"") -> - | AD18: =IF(F18<>"",VLOOKUP(E18&"|"&F18,'IO-KOD'!$A$1:$M$70,13,0),"") -> -
B19: TS1234 | C19: NNO | D19: VMS | E19: Z | F19: SPG000 | G19: =IF(F19<>"",VLOOKUP(E19&"|"&F19,'IO-KOD'!$A$1:$E$70,5,0),"") -> Stupeň regulace P - výroba 0% - nastavit | H19: TS1234.NNO.VMS.Z.SPG000 | J19: 41234 | K19: 161 | L19: 18 | M19: =IF(F19<>"",VLOOKUP(C19,Nap.hladiny!$A:$D,2,0),"") -> 5 | N19: =IF(F19<>"",VLOOKUP(D19,Pole!$A:$B,2,0),"") -> 120 | O19: =IF(F19<>"",VLOOKUP(E19&"|"&F19,'IO-KOD'!$A$1:$E$70,3,0),"") -> 12 | P19: =IF(F19<>"",VLOOKUP(E19&"|"&F19,'IO-KOD'!$A$1:$E$70,4,0),"") -> 84 | Q19: =IF(F19<>"",VLOOKUP(C19,Nap.hladiny!$A:$D,3,0),"") -> 0 | R19: OK | S19: 6050936 | T19: 92 | U19: 84 | V19: 120 | W19: =IF(F19<>"",VLOOKUP(E19&"|"&F19,'IO-KOD'!$A$1:$H$70,8,0),"") -> 45 | X19: =IF(W19<>"",VLOOKUP(W19,'104-TI'!$A:$B,2,0),"") -> C_SC_NA_1 | Z19: =IF(F19<>"",VLOOKUP(E19&"|"&F19,'IO-KOD'!$A$1:$M$70,9,0),"") -> VYPNOUT | AA19: =IF(F19<>"",VLOOKUP(E19&"|"&F19,'IO-KOD'!$A$1:$M$70,10,0),"") -> ZAPNOUT | AB19: =IF(F19<>"",VLOOKUP(E19&"|"&F19,'IO-KOD'!$A$1:$M$70,11,0),"") -> - | AC19: =IF(F19<>"",VLOOKUP(E19&"|"&F19,'IO-KOD'!$A$1:$M$70,12,0),"") -> - | AD19: =IF(F19<>"",VLOOKUP(E19&"|"&F19,'IO-KOD'!$A$1:$M$70,13,0),"") -> -
B20: TS1234 | C20: NNO | D20: VMS | E20: S | F20: SPG100 | G20: =IF(F20<>"",VLOOKUP(E20&"|"&F20,'IO-KOD'!$A$1:$E$70,5,0),"") -> Stupeň regulace P - výroba 100% - nastaveno | H20: TS1234.NNO.VMS.S.SPG100 | J20: 41234 | K20: 161 | L20: 18 | M20: =IF(F20<>"",VLOOKUP(C20,Nap.hladiny!$A:$D,2,0),"") -> 5 | N20: =IF(F20<>"",VLOOKUP(D20,Pole!$A:$B,2,0),"") -> 120 | O20: =IF(F20<>"",VLOOKUP(E20&"|"&F20,'IO-KOD'!$A$1:$E$70,3,0),"") -> 6 | P20: =IF(F20<>"",VLOOKUP(E20&"|"&F20,'IO-KOD'!$A$1:$E$70,4,0),"") -> 232 | Q20: =IF(F20<>"",VLOOKUP(C20,Nap.hladiny!$A:$D,3,0),"") -> 0 | R20: OK | S20: 5695608 | T20: 86 | U20: 232 | V20: 120 | W20: =IF(F20<>"",VLOOKUP(E20&"|"&F20,'IO-KOD'!$A$1:$H$70,8,0),"") -> 30 | X20: =IF(W20<>"",VLOOKUP(W20,'104-TI'!$A:$B,2,0),"") -> M_SP_TB_1 | Z20: =IF(F20<>"",VLOOKUP(E20&"|"&F20,'IO-KOD'!$A$1:$M$70,9,0),"") -> VYPNUTO | AA20: =IF(F20<>"",VLOOKUP(E20&"|"&F20,'IO-KOD'!$A$1:$M$70,10,0),"") -> ZAPNUTO | AB20: =IF(F20<>"",VLOOKUP(E20&"|"&F20,'IO-KOD'!$A$1:$M$70,11,0),"") -> - | AC20: =IF(F20<>"",VLOOKUP(E20&"|"&F20,'IO-KOD'!$A$1:$M$70,12,0),"") -> - | AD20: =IF(F20<>"",VLOOKUP(E20&"|"&F20,'IO-KOD'!$A$1:$M$70,13,0),"") -> -
B21: TS1234 | C21: NNO | D21: VMS | E21: S | F21: SPG060 | G21: =IF(F21<>"",VLOOKUP(E21&"|"&F21,'IO-KOD'!$A$1:$E$70,5,0),"") -> Stupeň regulace P - výroba 60% - nastaveno | H21: TS1234.NNO.VMS.S.SPG060 | J21: 41234 | K21: 161 | L21: 18 | M21: =IF(F21<>"",VLOOKUP(C21,Nap.hladiny!$A:$D,2,0),"") -> 5 | N21: =IF(F21<>"",VLOOKUP(D21,Pole!$A:$B,2,0),"") -> 120 | O21: =IF(F21<>"",VLOOKUP(E21&"|"&F21,'IO-KOD'!$A$1:$E$70,3,0),"") -> 6 | P21: =IF(F21<>"",VLOOKUP(E21&"|"&F21,'IO-KOD'!$A$1:$E$70,4,0),"") -> 233 | Q21: =IF(F21<>"",VLOOKUP(C21,Nap.hladiny!$A:$D,3,0),"") -> 0 | R21: OK | S21: 5695864 | T21: 86 | U21: 233 | V21: 120 | W21: =IF(F21<>"",VLOOKUP(E21&"|"&F21,'IO-KOD'!$A$1:$H$70,8,0),"") -> 30 | X21: =IF(W21<>"",VLOOKUP(W21,'104-TI'!$A:$B,2,0),"") -> M_SP_TB_1 | Z21: =IF(F21<>"",VLOOKUP(E21&"|"&F21,'IO-KOD'!$A$1:$M$70,9,0),"") -> VYPNUTO | AA21: =IF(F21<>"",VLOOKUP(E21&"|"&F21,'IO-KOD'!$A$1:$M$70,10,0),"") -> ZAPNUTO | AB21: =IF(F21<>"",VLOOKUP(E21&"|"&F21,'IO-KOD'!$A$1:$M$70,11,0),"") -> - | AC21: =IF(F21<>"",VLOOKUP(E21&"|"&F21,'IO-KOD'!$A$1:$M$70,12,0),"") -> - | AD21: =IF(F21<>"",VLOOKUP(E21&"|"&F21,'IO-KOD'!$A$1:$M$70,13,0),"") -> -
B22: TS1234 | C22: NNO | D22: VMS | E22: S | F22: SPG030 | G22: =IF(F22<>"",VLOOKUP(E22&"|"&F22,'IO-KOD'!$A$1:$E$70,5,0),"") -> Stupeň regulace P - výroba 30% - nastaveno | H22: TS1234.NNO.VMS.S.SPG030 | J22: 41234 | K22: 161 | L22: 18 | M22: =IF(F22<>"",VLOOKUP(C22,Nap.hladiny!$A:$D,2,0),"") -> 5 | N22: =IF(F22<>"",VLOOKUP(D22,Pole!$A:$B,2,0),"") -> 120 | O22: =IF(F22<>"",VLOOKUP(E22&"|"&F22,'IO-KOD'!$A$1:$E$70,3,0),"") -> 6 | P22: =IF(F22<>"",VLOOKUP(E22&"|"&F22,'IO-KOD'!$A$1:$E$70,4,0),"") -> 234 | Q22: =IF(F22<>"",VLOOKUP(C22,Nap.hladiny!$A:$D,3,0),"") -> 0 | R22: OK | S22: 5696120 | T22: 86 | U22: 234 | V22: 120 | W22: =IF(F22<>"",VLOOKUP(E22&"|"&F22,'IO-KOD'!$A$1:$H$70,8,0),"") -> 30 | X22: =IF(W22<>"",VLOOKUP(W22,'104-TI'!$A:$B,2,0),"") -> M_SP_TB_1 | Z22: =IF(F22<>"",VLOOKUP(E22&"|"&F22,'IO-KOD'!$A$1:$M$70,9,0),"") -> VYPNUTO | AA22: =IF(F22<>"",VLOOKUP(E22&"|"&F22,'IO-KOD'!$A$1:$M$70,10,0),"") -> ZAPNUTO | AB22: =IF(F22<>"",VLOOKUP(E22&"|"&F22,'IO-KOD'!$A$1:$M$70,11,0),"") -> - | AC22: =IF(F22<>"",VLOOKUP(E22&"|"&F22,'IO-KOD'!$A$1:$M$70,12,0),"") -> - | AD22: =IF(F22<>"",VLOOKUP(E22&"|"&F22,'IO-KOD'!$A$1:$M$70,13,0),"") -> -
B23: TS1234 | C23: NNO | D23: VMS | E23: S | F23: SPG000 | G23: =IF(F23<>"",VLOOKUP(E23&"|"&F23,'IO-KOD'!$A$1:$E$70,5,0),"") -> Stupeň regulace P - výroba 0% - nastaveno | H23: TS1234.NNO.VMS.S.SPG000 | J23: 41234 | K23: 161 | L23: 18 | M23: =IF(F23<>"",VLOOKUP(C23,Nap.hladiny!$A:$D,2,0),"") -> 5 | N23: =IF(F23<>"",VLOOKUP(D23,Pole!$A:$B,2,0),"") -> 120 | O23: =IF(F23<>"",VLOOKUP(E23&"|"&F23,'IO-KOD'!$A$1:$E$70,3,0),"") -> 6 | P23: =IF(F23<>"",VLOOKUP(E23&"|"&F23,'IO-KOD'!$A$1:$E$70,4,0),"") -> 235 | Q23: =IF(F23<>"",VLOOKUP(C23,Nap.hladiny!$A:$D,3,0),"") -> 0 | R23: OK | S23: 5696376 | T23: 86 | U23: 235 | V23: 120 | W23: =IF(F23<>"",VLOOKUP(E23&"|"&F23,'IO-KOD'!$A$1:$H$70,8,0),"") -> 30 | X23: =IF(W23<>"",VLOOKUP(W23,'104-TI'!$A:$B,2,0),"") -> M_SP_TB_1 | Z23: =IF(F23<>"",VLOOKUP(E23&"|"&F23,'IO-KOD'!$A$1:$M$70,9,0),"") -> VYPNUTO | AA23: =IF(F23<>"",VLOOKUP(E23&"|"&F23,'IO-KOD'!$A$1:$M$70,10,0),"") -> ZAPNUTO | AB23: =IF(F23<>"",VLOOKUP(E23&"|"&F23,'IO-KOD'!$A$1:$M$70,11,0),"") -> - | AC23: =IF(F23<>"",VLOOKUP(E23&"|"&F23,'IO-KOD'!$A$1:$M$70,12,0),"") -> - | AD23: =IF(F23<>"",VLOOKUP(E23&"|"&F23,'IO-KOD'!$A$1:$M$70,13,0),"") -> -
B24: TS1234 | C24: NNO | D24: VMS | E24: Z | F24: SPFG090C | G24: =IF(F24<>"",VLOOKUP(E24&"|"&F24,'IO-KOD'!$A$1:$E$70,5,0),"") -> Stupeň regulace cos fi - 0.90C - nastavit | H24: TS1234.NNO.VMS.Z.SPFG090C | J24: 41234 | K24: 161 | L24: 18 | M24: =IF(F24<>"",VLOOKUP(C24,Nap.hladiny!$A:$D,2,0),"") -> 5 | N24: =IF(F24<>"",VLOOKUP(D24,Pole!$A:$B,2,0),"") -> 120 | O24: =IF(F24<>"",VLOOKUP(E24&"|"&F24,'IO-KOD'!$A$1:$E$70,3,0),"") -> 12 | P24: =IF(F24<>"",VLOOKUP(E24&"|"&F24,'IO-KOD'!$A$1:$E$70,4,0),"") -> 127 | Q24: =IF(F24<>"",VLOOKUP(C24,Nap.hladiny!$A:$D,3,0),"") -> 0 | R24: OK | S24: 6061944 | T24: 92 | U24: 127 | V24: 120 | W24: =IF(F24<>"",VLOOKUP(E24&"|"&F24,'IO-KOD'!$A$1:$H$70,8,0),"") -> 45 | X24: =IF(W24<>"",VLOOKUP(W24,'104-TI'!$A:$B,2,0),"") -> C_SC_NA_1 | Z24: =IF(F24<>"",VLOOKUP(E24&"|"&F24,'IO-KOD'!$A$1:$M$70,9,0),"") -> VYPNOUT | AA24: =IF(F24<>"",VLOOKUP(E24&"|"&F24,'IO-KOD'!$A$1:$M$70,10,0),"") -> ZAPNOUT | AB24: =IF(F24<>"",VLOOKUP(E24&"|"&F24,'IO-KOD'!$A$1:$M$70,11,0),"") -> - | AC24: =IF(F24<>"",VLOOKUP(E24&"|"&F24,'IO-KOD'!$A$1:$M$70,12,0),"") -> - | AD24: =IF(F24<>"",VLOOKUP(E24&"|"&F24,'IO-KOD'!$A$1:$M$70,13,0),"") -> -
B25: TS1234 | C25: NNO | D25: VMS | E25: Z | F25: SPFG095C | G25: =IF(F25<>"",VLOOKUP(E25&"|"&F25,'IO-KOD'!$A$1:$E$70,5,0),"") -> Stupeň regulace cos fi - 0.95C - nastavit | H25: TS1234.NNO.VMS.Z.SPFG095C | J25: 41234 | K25: 161 | L25: 18 | M25: =IF(F25<>"",VLOOKUP(C25,Nap.hladiny!$A:$D,2,0),"") -> 5 | N25: =IF(F25<>"",VLOOKUP(D25,Pole!$A:$B,2,0),"") -> 120 | O25: =IF(F25<>"",VLOOKUP(E25&"|"&F25,'IO-KOD'!$A$1:$E$70,3,0),"") -> 12 | P25: =IF(F25<>"",VLOOKUP(E25&"|"&F25,'IO-KOD'!$A$1:$E$70,4,0),"") -> 128 | Q25: =IF(F25<>"",VLOOKUP(C25,Nap.hladiny!$A:$D,3,0),"") -> 0 | R25: OK | S25: 6062200 | T25: 92 | U25: 128 | V25: 120 | W25: =IF(F25<>"",VLOOKUP(E25&"|"&F25,'IO-KOD'!$A$1:$H$70,8,0),"") -> 45 | X25: =IF(W25<>"",VLOOKUP(W25,'104-TI'!$A:$B,2,0),"") -> C_SC_NA_1 | Z25: =IF(F25<>"",VLOOKUP(E25&"|"&F25,'IO-KOD'!$A$1:$M$70,9,0),"") -> VYPNOUT | AA25: =IF(F25<>"",VLOOKUP(E25&"|"&F25,'IO-KOD'!$A$1:$M$70,10,0),"") -> ZAPNOUT | AB25: =IF(F25<>"",VLOOKUP(E25&"|"&F25,'IO-KOD'!$A$1:$M$70,11,0),"") -> - | AC25: =IF(F25<>"",VLOOKUP(E25&"|"&F25,'IO-KOD'!$A$1:$M$70,12,0),"") -> - | AD25: =IF(F25<>"",VLOOKUP(E25&"|"&F25,'IO-KOD'!$A$1:$M$70,13,0),"") -> -
B26: TS1234 | C26: NNO | D26: VMS | E26: Z | F26: SPFG100 | G26: =IF(F26<>"",VLOOKUP(E26&"|"&F26,'IO-KOD'!$A$1:$E$70,5,0),"") -> Stupeň regulace cos fi - 1.00 - nastavit | H26: TS1234.NNO.VMS.Z.SPFG100 | J26: 41234 | K26: 161 | L26: =IF(J26<>"",MOD(J26,256),"") -> 18 | M26: =IF(F26<>"",VLOOKUP(C26,Nap.hladiny!$A:$D,2,0),"") -> 5 | N26: =IF(F26<>"",VLOOKUP(D26,Pole!$A:$B,2,0),"") -> 120 | O26: =IF(F26<>"",VLOOKUP(E26&"|"&F26,'IO-KOD'!$A$1:$E$70,3,0),"") -> 12 | P26: =IF(F26<>"",VLOOKUP(E26&"|"&F26,'IO-KOD'!$A$1:$E$70,4,0),"") -> 129 | Q26: =IF(F26<>"",VLOOKUP(C26,Nap.hladiny!$A:$D,3,0),"") -> 0 | R26: OK | S26: 6062456 | T26: 92 | U26: 129 | V26: =IF(S26<>"",MOD(S26,256),"") -> 120 | W26: =IF(F26<>"",VLOOKUP(E26&"|"&F26,'IO-KOD'!$A$1:$H$70,8,0),"") -> 45 | X26: =IF(W26<>"",VLOOKUP(W26,'104-TI'!$A:$B,2,0),"") -> C_SC_NA_1 | Z26: =IF(F26<>"",VLOOKUP(E26&"|"&F26,'IO-KOD'!$A$1:$M$70,9,0),"") -> VYPNOUT | AA26: =IF(F26<>"",VLOOKUP(E26&"|"&F26,'IO-KOD'!$A$1:$M$70,10,0),"") -> ZAPNOUT | AB26: =IF(F26<>"",VLOOKUP(E26&"|"&F26,'IO-KOD'!$A$1:$M$70,11,0),"") -> - | AC26: =IF(F26<>"",VLOOKUP(E26&"|"&F26,'IO-KOD'!$A$1:$M$70,12,0),"") -> - | AD26: =IF(F26<>"",VLOOKUP(E26&"|"&F26,'IO-KOD'!$A$1:$M$70,13,0),"") -> -
B27: TS1234 | C27: NNO | D27: VMS | E27: Z | F27: SPFG095L | G27: =IF(F27<>"",VLOOKUP(E27&"|"&F27,'IO-KOD'!$A$1:$E$70,5,0),"") -> Stupeň regulace cos fi - 0.95L - nastavit | H27: TS1234.NNO.VMS.Z.SPFG095L | J27: 41234 | K27: 161 | L27: =IF(J27<>"",MOD(J27,256),"") -> 18 | M27: =IF(F27<>"",VLOOKUP(C27,Nap.hladiny!$A:$D,2,0),"") -> 5 | N27: =IF(F27<>"",VLOOKUP(D27,Pole!$A:$B,2,0),"") -> 120 | O27: =IF(F27<>"",VLOOKUP(E27&"|"&F27,'IO-KOD'!$A$1:$E$70,3,0),"") -> 12 | P27: =IF(F27<>"",VLOOKUP(E27&"|"&F27,'IO-KOD'!$A$1:$E$70,4,0),"") -> 130 | Q27: =IF(F27<>"",VLOOKUP(C27,Nap.hladiny!$A:$D,3,0),"") -> 0 | R27: OK | S27: 6062712 | T27: 92 | U27: 130 | V27: =IF(S27<>"",MOD(S27,256),"") -> 120 | W27: =IF(F27<>"",VLOOKUP(E27&"|"&F27,'IO-KOD'!$A$1:$H$70,8,0),"") -> 45 | X27: =IF(W27<>"",VLOOKUP(W27,'104-TI'!$A:$B,2,0),"") -> C_SC_NA_1 | Z27: =IF(F27<>"",VLOOKUP(E27&"|"&F27,'IO-KOD'!$A$1:$M$70,9,0),"") -> VYPNOUT | AA27: =IF(F27<>"",VLOOKUP(E27&"|"&F27,'IO-KOD'!$A$1:$M$70,10,0),"") -> ZAPNOUT | AB27: =IF(F27<>"",VLOOKUP(E27&"|"&F27,'IO-KOD'!$A$1:$M$70,11,0),"") -> - | AC27: =IF(F27<>"",VLOOKUP(E27&"|"&F27,'IO-KOD'!$A$1:$M$70,12,0),"") -> - | AD27: =IF(F27<>"",VLOOKUP(E27&"|"&F27,'IO-KOD'!$A$1:$M$70,13,0),"") -> -
B28: TS1234 | C28: NNO | D28: VMS | E28: Z | F28: SPFG090L | G28: =IF(F28<>"",VLOOKUP(E28&"|"&F28,'IO-KOD'!$A$1:$E$70,5,0),"") -> Stupeň regulace cos fi - 0.90L - nastavit | H28: TS1234.NNO.VMS.Z.SPFG090L | J28: 41234 | K28: 161 | L28: =IF(J28<>"",MOD(J28,256),"") -> 18 | M28: =IF(F28<>"",VLOOKUP(C28,Nap.hladiny!$A:$D,2,0),"") -> 5 | N28: =IF(F28<>"",VLOOKUP(D28,Pole!$A:$B,2,0),"") -> 120 | O28: =IF(F28<>"",VLOOKUP(E28&"|"&F28,'IO-KOD'!$A$1:$E$70,3,0),"") -> 12 | P28: =IF(F28<>"",VLOOKUP(E28&"|"&F28,'IO-KOD'!$A$1:$E$70,4,0),"") -> 131 | Q28: =IF(F28<>"",VLOOKUP(C28,Nap.hladiny!$A:$D,3,0),"") -> 0 | R28: OK | S28: 6062968 | T28: 92 | U28: 131 | V28: =IF(S28<>"",MOD(S28,256),"") -> 120 | W28: =IF(F28<>"",VLOOKUP(E28&"|"&F28,'IO-KOD'!$A$1:$H$70,8,0),"") -> 45 | X28: =IF(W28<>"",VLOOKUP(W28,'104-TI'!$A:$B,2,0),"") -> C_SC_NA_1 | Z28: =IF(F28<>"",VLOOKUP(E28&"|"&F28,'IO-KOD'!$A$1:$M$70,9,0),"") -> VYPNOUT | AA28: =IF(F28<>"",VLOOKUP(E28&"|"&F28,'IO-KOD'!$A$1:$M$70,10,0),"") -> ZAPNOUT | AB28: =IF(F28<>"",VLOOKUP(E28&"|"&F28,'IO-KOD'!$A$1:$M$70,11,0),"") -> - | AC28: =IF(F28<>"",VLOOKUP(E28&"|"&F28,'IO-KOD'!$A$1:$M$70,12,0),"") -> - | AD28: =IF(F28<>"",VLOOKUP(E28&"|"&F28,'IO-KOD'!$A$1:$M$70,13,0),"") -> -
B29: TS1234 | C29: NNO | D29: VMS | E29: S | F29: SPFG090C | G29: =IF(F29<>"",VLOOKUP(E29&"|"&F29,'IO-KOD'!$A$1:$E$70,5,0),"") -> Stupeň regulace cos fi - 0.90C - nastaveno | H29: TS1234.NNO.VMS.S.SPFG090C | J29: 41234 | K29: 161 | L29: =IF(J29<>"",MOD(J29,256),"") -> 18 | M29: =IF(F29<>"",VLOOKUP(C29,Nap.hladiny!$A:$D,2,0),"") -> 5 | N29: =IF(F29<>"",VLOOKUP(D29,Pole!$A:$B,2,0),"") -> 120 | O29: =IF(F29<>"",VLOOKUP(E29&"|"&F29,'IO-KOD'!$A$1:$E$70,3,0),"") -> 6 | P29: =IF(F29<>"",VLOOKUP(E29&"|"&F29,'IO-KOD'!$A$1:$E$70,4,0),"") -> 226 | Q29: =IF(F29<>"",VLOOKUP(C29,Nap.hladiny!$A:$D,3,0),"") -> 0 | R29: OK | S29: 5694072 | T29: 86 | U29: 226 | V29: =IF(S29<>"",MOD(S29,256),"") -> 120 | W29: =IF(F29<>"",VLOOKUP(E29&"|"&F29,'IO-KOD'!$A$1:$H$70,8,0),"") -> 30 | X29: =IF(W29<>"",VLOOKUP(W29,'104-TI'!$A:$B,2,0),"") -> M_SP_TB_1 | Z29: =IF(F29<>"",VLOOKUP(E29&"|"&F29,'IO-KOD'!$A$1:$M$70,9,0),"") -> VYPNUTO | AA29: =IF(F29<>"",VLOOKUP(E29&"|"&F29,'IO-KOD'!$A$1:$M$70,10,0),"") -> ZAPNUTO | AB29: =IF(F29<>"",VLOOKUP(E29&"|"&F29,'IO-KOD'!$A$1:$M$70,11,0),"") -> - | AC29: =IF(F29<>"",VLOOKUP(E29&"|"&F29,'IO-KOD'!$A$1:$M$70,12,0),"") -> - | AD29: =IF(F29<>"",VLOOKUP(E29&"|"&F29,'IO-KOD'!$A$1:$M$70,13,0),"") -> -
B30: TS1234 | C30: NNO | D30: VMS | E30: S | F30: SPFG095C | G30: =IF(F30<>"",VLOOKUP(E30&"|"&F30,'IO-KOD'!$A$1:$E$70,5,0),"") -> Stupeň regulace cos fi - 0.95C - nastaveno | H30: TS1234.NNO.VMS.S.SPFG095C | J30: 41234 | K30: 161 | L30: 18 | M30: =IF(F30<>"",VLOOKUP(C30,Nap.hladiny!$A:$D,2,0),"") -> 5 | N30: =IF(F30<>"",VLOOKUP(D30,Pole!$A:$B,2,0),"") -> 120 | O30: =IF(F30<>"",VLOOKUP(E30&"|"&F30,'IO-KOD'!$A$1:$E$70,3,0),"") -> 6 | P30: =IF(F30<>"",VLOOKUP(E30&"|"&F30,'IO-KOD'!$A$1:$E$70,4,0),"") -> 227 | Q30: =IF(F30<>"",VLOOKUP(C30,Nap.hladiny!$A:$D,3,0),"") -> 0 | R30: OK | S30: 5694328 | T30: 86 | U30: 227 | V30: 120 | W30: =IF(F30<>"",VLOOKUP(E30&"|"&F30,'IO-KOD'!$A$1:$H$70,8,0),"") -> 30 | X30: =IF(W30<>"",VLOOKUP(W30,'104-TI'!$A:$B,2,0),"") -> M_SP_TB_1 | Z30: =IF(F30<>"",VLOOKUP(E30&"|"&F30,'IO-KOD'!$A$1:$M$70,9,0),"") -> VYPNUTO | AA30: =IF(F30<>"",VLOOKUP(E30&"|"&F30,'IO-KOD'!$A$1:$M$70,10,0),"") -> ZAPNUTO | AB30: =IF(F30<>"",VLOOKUP(E30&"|"&F30,'IO-KOD'!$A$1:$M$70,11,0),"") -> - | AC30: =IF(F30<>"",VLOOKUP(E30&"|"&F30,'IO-KOD'!$A$1:$M$70,12,0),"") -> - | AD30: =IF(F30<>"",VLOOKUP(E30&"|"&F30,'IO-KOD'!$A$1:$M$70,13,0),"") -> -
B31: TS1234 | C31: NNO | D31: VMS | E31: S | F31: SPFG100 | G31: =IF(F31<>"",VLOOKUP(E31&"|"&F31,'IO-KOD'!$A$1:$E$70,5,0),"") -> Stupeň regulace cos fi - 1.00 - nastaveno | H31: TS1234.NNO.VMS.S.SPFG100 | J31: 41234 | K31: 161 | L31: 18 | M31: =IF(F31<>"",VLOOKUP(C31,Nap.hladiny!$A:$D,2,0),"") -> 5 | N31: =IF(F31<>"",VLOOKUP(D31,Pole!$A:$B,2,0),"") -> 120 | O31: =IF(F31<>"",VLOOKUP(E31&"|"&F31,'IO-KOD'!$A$1:$E$70,3,0),"") -> 6 | P31: =IF(F31<>"",VLOOKUP(E31&"|"&F31,'IO-KOD'!$A$1:$E$70,4,0),"") -> 228 | Q31: =IF(F31<>"",VLOOKUP(C31,Nap.hladiny!$A:$D,3,0),"") -> 0 | R31: OK | S31: 5694584 | T31: 86 | U31: 228 | V31: 120 | W31: =IF(F31<>"",VLOOKUP(E31&"|"&F31,'IO-KOD'!$A$1:$H$70,8,0),"") -> 30 | X31: =IF(W31<>"",VLOOKUP(W31,'104-TI'!$A:$B,2,0),"") -> M_SP_TB_1 | Z31: =IF(F31<>"",VLOOKUP(E31&"|"&F31,'IO-KOD'!$A$1:$M$70,9,0),"") -> VYPNUTO | AA31: =IF(F31<>"",VLOOKUP(E31&"|"&F31,'IO-KOD'!$A$1:$M$70,10,0),"") -> ZAPNUTO | AB31: =IF(F31<>"",VLOOKUP(E31&"|"&F31,'IO-KOD'!$A$1:$M$70,11,0),"") -> - | AC31: =IF(F31<>"",VLOOKUP(E31&"|"&F31,'IO-KOD'!$A$1:$M$70,12,0),"") -> - | AD31: =IF(F31<>"",VLOOKUP(E31&"|"&F31,'IO-KOD'!$A$1:$M$70,13,0),"") -> -
B32: TS1234 | C32: NNO | D32: VMS | E32: S | F32: SPFG095L | G32: =IF(F32<>"",VLOOKUP(E32&"|"&F32,'IO-KOD'!$A$1:$E$70,5,0),"") -> Stupeň regulace cos fi - 0.95L - nastaveno | H32: TS1234.NNO.VMS.S.SPFG095L | J32: 41234 | K32: 161 | L32: 18 | M32: =IF(F32<>"",VLOOKUP(C32,Nap.hladiny!$A:$D,2,0),"") -> 5 | N32: =IF(F32<>"",VLOOKUP(D32,Pole!$A:$B,2,0),"") -> 120 | O32: =IF(F32<>"",VLOOKUP(E32&"|"&F32,'IO-KOD'!$A$1:$E$70,3,0),"") -> 6 | P32: =IF(F32<>"",VLOOKUP(E32&"|"&F32,'IO-KOD'!$A$1:$E$70,4,0),"") -> 229 | Q32: =IF(F32<>"",VLOOKUP(C32,Nap.hladiny!$A:$D,3,0),"") -> 0 | R32: OK | S32: 5694840 | T32: 86 | U32: 229 | V32: 120 | W32: =IF(F32<>"",VLOOKUP(E32&"|"&F32,'IO-KOD'!$A$1:$H$70,8,0),"") -> 30 | X32: =IF(W32<>"",VLOOKUP(W32,'104-TI'!$A:$B,2,0),"") -> M_SP_TB_1 | Z32: =IF(F32<>"",VLOOKUP(E32&"|"&F32,'IO-KOD'!$A$1:$M$70,9,0),"") -> VYPNUTO | AA32: =IF(F32<>"",VLOOKUP(E32&"|"&F32,'IO-KOD'!$A$1:$M$70,10,0),"") -> ZAPNUTO | AB32: =IF(F32<>"",VLOOKUP(E32&"|"&F32,'IO-KOD'!$A$1:$M$70,11,0),"") -> - | AC32: =IF(F32<>"",VLOOKUP(E32&"|"&F32,'IO-KOD'!$A$1:$M$70,12,0),"") -> - | AD32: =IF(F32<>"",VLOOKUP(E32&"|"&F32,'IO-KOD'!$A$1:$M$70,13,0),"") -> -
B33: TS1234 | C33: NNO | D33: VMS | E33: S | F33: SPFG090L | G33: =IF(F33<>"",VLOOKUP(E33&"|"&F33,'IO-KOD'!$A$1:$E$70,5,0),"") -> Stupeň regulace cos fi - 0.90L - nastaveno | H33: TS1234.NNO.VMS.S.SPFG090L | J33: 41234 | K33: 161 | L33: 18 | M33: =IF(F33<>"",VLOOKUP(C33,Nap.hladiny!$A:$D,2,0),"") -> 5 | N33: =IF(F33<>"",VLOOKUP(D33,Pole!$A:$B,2,0),"") -> 120 | O33: =IF(F33<>"",VLOOKUP(E33&"|"&F33,'IO-KOD'!$A$1:$E$70,3,0),"") -> 6 | P33: =IF(F33<>"",VLOOKUP(E33&"|"&F33,'IO-KOD'!$A$1:$E$70,4,0),"") -> 230 | Q33: =IF(F33<>"",VLOOKUP(C33,Nap.hladiny!$A:$D,3,0),"") -> 0 | R33: OK | S33: 5695096 | T33: 86 | U33: 230 | V33: 120 | W33: =IF(F33<>"",VLOOKUP(E33&"|"&F33,'IO-KOD'!$A$1:$H$70,8,0),"") -> 30 | X33: =IF(W33<>"",VLOOKUP(W33,'104-TI'!$A:$B,2,0),"") -> M_SP_TB_1 | Z33: =IF(F33<>"",VLOOKUP(E33&"|"&F33,'IO-KOD'!$A$1:$M$70,9,0),"") -> VYPNUTO | AA33: =IF(F33<>"",VLOOKUP(E33&"|"&F33,'IO-KOD'!$A$1:$M$70,10,0),"") -> ZAPNUTO | AB33: =IF(F33<>"",VLOOKUP(E33&"|"&F33,'IO-KOD'!$A$1:$M$70,11,0),"") -> - | AC33: =IF(F33<>"",VLOOKUP(E33&"|"&F33,'IO-KOD'!$A$1:$M$70,12,0),"") -> - | AD33: =IF(F33<>"",VLOOKUP(E33&"|"&F33,'IO-KOD'!$A$1:$M$70,13,0),"") -> -
B34: TS1234 | C34: NNO | D34: VM1 | E34: S | F34: QM | G34: =IF(F34<>"",VLOOKUP(E34&"|"&F34,'IO-KOD'!$A$1:$E$70,5,0),"") -> Vypínač QM - stav | H34: TS1234.NNO.VM1.S.QM | J34: 41234 | K34: 161 | L34: 18 | M34: =IF(F34<>"",VLOOKUP(C34,Nap.hladiny!$A:$D,2,0),"") -> 5 | N34: =IF(F34<>"",VLOOKUP(D34,Pole!$A:$B,2,0),"") -> 121 | O34: =IF(F34<>"",VLOOKUP(E34&"|"&F34,'IO-KOD'!$A$1:$E$70,3,0),"") -> 0 | P34: =IF(F34<>"",VLOOKUP(E34&"|"&F34,'IO-KOD'!$A$1:$E$70,4,0),"") -> 1 | Q34: =IF(F34<>"",VLOOKUP(C34,Nap.hladiny!$A:$D,3,0),"") -> 0 | R34: OK | S34: 5243257 | T34: 80 | U34: 1 | V34: 121 | W34: =IF(F34<>"",VLOOKUP(E34&"|"&F34,'IO-KOD'!$A$1:$H$70,8,0),"") -> 31 | X34: =IF(W34<>"",VLOOKUP(W34,'104-TI'!$A:$B,2,0),"") -> M_DP_TB_1 | Z34: =IF(F34<>"",VLOOKUP(E34&"|"&F34,'IO-KOD'!$A$1:$M$70,9,0),"") -> MEZIPOLOHA | AA34: =IF(F34<>"",VLOOKUP(E34&"|"&F34,'IO-KOD'!$A$1:$M$70,10,0),"") -> VYPNUTO | AB34: =IF(F34<>"",VLOOKUP(E34&"|"&F34,'IO-KOD'!$A$1:$M$70,11,0),"") -> ZAPNUTO | AC34: =IF(F34<>"",VLOOKUP(E34&"|"&F34,'IO-KOD'!$A$1:$M$70,12,0),"") -> PORUCHA | AD34: =IF(F34<>"",VLOOKUP(E34&"|"&F34,'IO-KOD'!$A$1:$M$70,13,0),"") -> -
B35: TS1234 | C35: NNO | D35: VM1 | E35: P | F35: H100T | G35: =IF(F35<>"",VLOOKUP(E35&"|"&F35,'IO-KOD'!$A$1:$E$70,5,0),"") -> Ochrany - působení ochran | H35: TS1234.NNO.VM1.P.H100T | J35: 41234 | K35: 161 | L35: 18 | M35: =IF(F35<>"",VLOOKUP(C35,Nap.hladiny!$A:$D,2,0),"") -> 5 | N35: =IF(F35<>"",VLOOKUP(D35,Pole!$A:$B,2,0),"") -> 121 | O35: =IF(F35<>"",VLOOKUP(E35&"|"&F35,'IO-KOD'!$A$1:$E$70,3,0),"") -> 1 | P35: =IF(F35<>"",VLOOKUP(E35&"|"&F35,'IO-KOD'!$A$1:$E$70,4,0),"") -> 1 | Q35: =IF(F35<>"",VLOOKUP(C35,Nap.hladiny!$A:$D,3,0),"") -> 0 | R35: OK | S35: 5308793 | T35: 81 | U35: 1 | V35: 121 | W35: =IF(F35<>"",VLOOKUP(E35&"|"&F35,'IO-KOD'!$A$1:$H$70,8,0),"") -> 30 | X35: =IF(W35<>"",VLOOKUP(W35,'104-TI'!$A:$B,2,0),"") -> M_SP_TB_1 | Z35: =IF(F35<>"",VLOOKUP(E35&"|"&F35,'IO-KOD'!$A$1:$M$70,9,0),"") -> KONEC | AA35: =IF(F35<>"",VLOOKUP(E35&"|"&F35,'IO-KOD'!$A$1:$M$70,10,0),"") -> ZAČÁTEK | AB35: =IF(F35<>"",VLOOKUP(E35&"|"&F35,'IO-KOD'!$A$1:$M$70,11,0),"") -> - | AC35: =IF(F35<>"",VLOOKUP(E35&"|"&F35,'IO-KOD'!$A$1:$M$70,12,0),"") -> - | AD35: =IF(F35<>"",VLOOKUP(E35&"|"&F35,'IO-KOD'!$A$1:$M$70,13,0),"") -> -
B36: TS1234 | C36: NNO | D36: VM1 | E36: P | F36: H100IF | G36: =IF(F36<>"",VLOOKUP(E36&"|"&F36,'IO-KOD'!$A$1:$E$70,5,0),"") -> Ochrany - vnitřní porucha | H36: TS1234.NNO.VM1.P.H100IF | J36: 41234 | K36: 161 | L36: 18 | M36: =IF(F36<>"",VLOOKUP(C36,Nap.hladiny!$A:$D,2,0),"") -> 5 | N36: =IF(F36<>"",VLOOKUP(D36,Pole!$A:$B,2,0),"") -> 121 | O36: =IF(F36<>"",VLOOKUP(E36&"|"&F36,'IO-KOD'!$A$1:$E$70,3,0),"") -> 2 | P36: =IF(F36<>"",VLOOKUP(E36&"|"&F36,'IO-KOD'!$A$1:$E$70,4,0),"") -> 17 | Q36: =IF(F36<>"",VLOOKUP(C36,Nap.hladiny!$A:$D,3,0),"") -> 0 | R36: OK | S36: 5378425 | T36: 82 | U36: 17 | V36: 121 | W36: =IF(F36<>"",VLOOKUP(E36&"|"&F36,'IO-KOD'!$A$1:$H$70,8,0),"") -> 30 | X36: =IF(W36<>"",VLOOKUP(W36,'104-TI'!$A:$B,2,0),"") -> M_SP_TB_1 | Z36: =IF(F36<>"",VLOOKUP(E36&"|"&F36,'IO-KOD'!$A$1:$M$70,9,0),"") -> KONEC | AA36: =IF(F36<>"",VLOOKUP(E36&"|"&F36,'IO-KOD'!$A$1:$M$70,10,0),"") -> ZAČÁTEK | AB36: =IF(F36<>"",VLOOKUP(E36&"|"&F36,'IO-KOD'!$A$1:$M$70,11,0),"") -> - | AC36: =IF(F36<>"",VLOOKUP(E36&"|"&F36,'IO-KOD'!$A$1:$M$70,12,0),"") -> - | AD36: =IF(F36<>"",VLOOKUP(E36&"|"&F36,'IO-KOD'!$A$1:$M$70,13,0),"") -> -
B37: TS1234 | C37: NNO | D37: VM2 | E37: S | F37: QM | G37: =IF(F37<>"",VLOOKUP(E37&"|"&F37,'IO-KOD'!$A$1:$E$70,5,0),"") -> Vypínač QM - stav | H37: TS1234.NNO.VM2.S.QM | J37: 41234 | K37: 161 | L37: 18 | M37: =IF(F37<>"",VLOOKUP(C37,Nap.hladiny!$A:$D,2,0),"") -> 5 | N37: =IF(F37<>"",VLOOKUP(D37,Pole!$A:$B,2,0),"") -> 122 | O37: =IF(F37<>"",VLOOKUP(E37&"|"&F37,'IO-KOD'!$A$1:$E$70,3,0),"") -> 0 | P37: =IF(F37<>"",VLOOKUP(E37&"|"&F37,'IO-KOD'!$A$1:$E$70,4,0),"") -> 1 | Q37: =IF(F37<>"",VLOOKUP(C37,Nap.hladiny!$A:$D,3,0),"") -> 0 | R37: OK | S37: 5243258 | T37: 80 | U37: 1 | V37: 122 | W37: =IF(F37<>"",VLOOKUP(E37&"|"&F37,'IO-KOD'!$A$1:$H$70,8,0),"") -> 31 | X37: =IF(W37<>"",VLOOKUP(W37,'104-TI'!$A:$B,2,0),"") -> M_DP_TB_1 | Z37: =IF(F37<>"",VLOOKUP(E37&"|"&F37,'IO-KOD'!$A$1:$M$70,9,0),"") -> MEZIPOLOHA | AA37: =IF(F37<>"",VLOOKUP(E37&"|"&F37,'IO-KOD'!$A$1:$M$70,10,0),"") -> VYPNUTO | AB37: =IF(F37<>"",VLOOKUP(E37&"|"&F37,'IO-KOD'!$A$1:$M$70,11,0),"") -> ZAPNUTO | AC37: =IF(F37<>"",VLOOKUP(E37&"|"&F37,'IO-KOD'!$A$1:$M$70,12,0),"") -> PORUCHA | AD37: =IF(F37<>"",VLOOKUP(E37&"|"&F37,'IO-KOD'!$A$1:$M$70,13,0),"") -> -
B38: TS1234 | C38: NNO | D38: VM2 | E38: P | F38: H100T | G38: =IF(F38<>"",VLOOKUP(E38&"|"&F38,'IO-KOD'!$A$1:$E$70,5,0),"") -> Ochrany - působení ochran | H38: TS1234.NNO.VM2.P.H100T | J38: 41234 | K38: 161 | L38: 18 | M38: =IF(F38<>"",VLOOKUP(C38,Nap.hladiny!$A:$D,2,0),"") -> 5 | N38: =IF(F38<>"",VLOOKUP(D38,Pole!$A:$B,2,0),"") -> 122 | O38: =IF(F38<>"",VLOOKUP(E38&"|"&F38,'IO-KOD'!$A$1:$E$70,3,0),"") -> 1 | P38: =IF(F38<>"",VLOOKUP(E38&"|"&F38,'IO-KOD'!$A$1:$E$70,4,0),"") -> 1 | Q38: =IF(F38<>"",VLOOKUP(C38,Nap.hladiny!$A:$D,3,0),"") -> 0 | R38: OK | S38: 5308794 | T38: 81 | U38: 1 | V38: 122 | W38: =IF(F38<>"",VLOOKUP(E38&"|"&F38,'IO-KOD'!$A$1:$H$70,8,0),"") -> 30 | X38: =IF(W38<>"",VLOOKUP(W38,'104-TI'!$A:$B,2,0),"") -> M_SP_TB_1 | Z38: =IF(F38<>"",VLOOKUP(E38&"|"&F38,'IO-KOD'!$A$1:$M$70,9,0),"") -> KONEC | AA38: =IF(F38<>"",VLOOKUP(E38&"|"&F38,'IO-KOD'!$A$1:$M$70,10,0),"") -> ZAČÁTEK | AB38: =IF(F38<>"",VLOOKUP(E38&"|"&F38,'IO-KOD'!$A$1:$M$70,11,0),"") -> - | AC38: =IF(F38<>"",VLOOKUP(E38&"|"&F38,'IO-KOD'!$A$1:$M$70,12,0),"") -> - | AD38: =IF(F38<>"",VLOOKUP(E38&"|"&F38,'IO-KOD'!$A$1:$M$70,13,0),"") -> -
B39: TS1234 | C39: NNO | D39: VM2 | E39: P | F39: H100IF | G39: =IF(F39<>"",VLOOKUP(E39&"|"&F39,'IO-KOD'!$A$1:$E$70,5,0),"") -> Ochrany - vnitřní porucha | H39: =IF(F39<>"",SUBSTITUTE(B39&"."&C39&"."&D39&"."&E39&"."&F39," ",""),"") -> TS1234.NNO.VM2.P.H100IF | J39: 41234 | K39: =IF(J39<>"",INT(MOD(J39,65536)/256),"") -> 161 | L39: 18 | M39: =IF(F39<>"",VLOOKUP(C39,Nap.hladiny!$A:$D,2,0),"") -> 5 | N39: =IF(F39<>"",VLOOKUP(D39,Pole!$A:$B,2,0),"") -> 122 | O39: =IF(F39<>"",VLOOKUP(E39&"|"&F39,'IO-KOD'!$A$1:$E$70,3,0),"") -> 2 | P39: =IF(F39<>"",VLOOKUP(E39&"|"&F39,'IO-KOD'!$A$1:$E$70,4,0),"") -> 17 | Q39: =IF(F39<>"",VLOOKUP(C39,Nap.hladiny!$A:$D,3,0),"") -> 0 | R39: =IF(F39<>"",IF(AND(COUNTIFS($S$7:$S$499, S39,$A$7:$A$499,"<>N")>1, S39<>"",A39<>"N"), "DUPLICITA", "OK"),"") -> OK | S39: 5378426 | T39: =IF(S39<>"",(S39-(U39*256)-V39)/65536,"") -> 82 | U39: =IF(S39<>"",INT(MOD(S39,65536)/256),"") -> 17 | V39: 122 | W39: =IF(F39<>"",VLOOKUP(E39&"|"&F39,'IO-KOD'!$A$1:$H$70,8,0),"") -> 30 | X39: =IF(W39<>"",VLOOKUP(W39,'104-TI'!$A:$B,2,0),"") -> M_SP_TB_1 | Z39: =IF(F39<>"",VLOOKUP(E39&"|"&F39,'IO-KOD'!$A$1:$M$70,9,0),"") -> KONEC | AA39: =IF(F39<>"",VLOOKUP(E39&"|"&F39,'IO-KOD'!$A$1:$M$70,10,0),"") -> ZAČÁTEK | AB39: =IF(F39<>"",VLOOKUP(E39&"|"&F39,'IO-KOD'!$A$1:$M$70,11,0),"") -> - | AC39: =IF(F39<>"",VLOOKUP(E39&"|"&F39,'IO-KOD'!$A$1:$M$70,12,0),"") -> - | AD39: =IF(F39<>"",VLOOKUP(E39&"|"&F39,'IO-KOD'!$A$1:$M$70,13,0),"") -> -
G40: =IF(F40<>"",VLOOKUP(E40&"|"&F40,'IO-KOD'!$A$1:$E$70,5,0),"") ->  | M40: =IF(F40<>"",VLOOKUP(C40,Nap.hladiny!$A:$D,2,0),"") ->  | N40: =IF(F40<>"",VLOOKUP(D40,Pole!$A:$B,2,0),"") ->  | O40: =IF(F40<>"",VLOOKUP(E40&"|"&F40,'IO-KOD'!$A$1:$E$70,3,0),"") ->  | P40: =IF(F40<>"",VLOOKUP(E40&"|"&F40,'IO-KOD'!$A$1:$E$70,4,0),"") ->  | Q40: =IF(F40<>"",VLOOKUP(C40,Nap.hladiny!$A:$D,3,0),"") ->  | S40: =IF(F40="","",(M40*2^20)+(O40*2^16)+(P40*2^8)+(Q40*2^7)+N40) ->  | W40: =IF(F40<>"",VLOOKUP(E40&"|"&F40,'IO-KOD'!$A$1:$H$70,8,0),"") ->  | X40: =IF(W40<>"",VLOOKUP(W40,'104-TI'!$A:$B,2,0),"") ->  | Z40: =IF(F40<>"",VLOOKUP(E40&"|"&F40,'IO-KOD'!$A$1:$M$70,9,0),"") ->  | AA40: =IF(F40<>"",VLOOKUP(E40&"|"&F40,'IO-KOD'!$A$1:$M$70,10,0),"") ->  | AB40: =IF(F40<>"",VLOOKUP(E40&"|"&F40,'IO-KOD'!$A$1:$M$70,11,0),"") ->  | AC40: =IF(F40<>"",VLOOKUP(E40&"|"&F40,'IO-KOD'!$A$1:$M$70,12,0),"") ->  | AD40: =IF(F40<>"",VLOOKUP(E40&"|"&F40,'IO-KOD'!$A$1:$M$70,13,0),"") -> 
G41: =IF(F41<>"",VLOOKUP(E41&"|"&F41,'IO-KOD'!$A$1:$E$70,5,0),"") ->  | M41: =IF(F41<>"",VLOOKUP(C41,Nap.hladiny!$A:$D,2,0),"") ->  | N41: =IF(F41<>"",VLOOKUP(D41,Pole!$A:$B,2,0),"") ->  | O41: =IF(F41<>"",VLOOKUP(E41&"|"&F41,'IO-KOD'!$A$1:$E$70,3,0),"") ->  | P41: =IF(F41<>"",VLOOKUP(E41&"|"&F41,'IO-KOD'!$A$1:$E$70,4,0),"") ->  | Q41: =IF(F41<>"",VLOOKUP(C41,Nap.hladiny!$A:$D,3,0),"") ->  | W41: =IF(F41<>"",VLOOKUP(E41&"|"&F41,'IO-KOD'!$A$1:$H$70,8,0),"") ->  | X41: =IF(W41<>"",VLOOKUP(W41,'104-TI'!$A:$B,2,0),"") ->  | Z41: =IF(F41<>"",VLOOKUP(E41&"|"&F41,'IO-KOD'!$A$1:$M$70,9,0),"") ->  | AA41: =IF(F41<>"",VLOOKUP(E41&"|"&F41,'IO-KOD'!$A$1:$M$70,10,0),"") ->  | AB41: =IF(F41<>"",VLOOKUP(E41&"|"&F41,'IO-KOD'!$A$1:$M$70,11,0),"") ->  | AC41: =IF(F41<>"",VLOOKUP(E41&"|"&F41,'IO-KOD'!$A$1:$M$70,12,0),"") ->  | AD41: =IF(F41<>"",VLOOKUP(E41&"|"&F41,'IO-KOD'!$A$1:$M$70,13,0),"") -> 
G42: =IF(F42<>"",VLOOKUP(E42&"|"&F42,'IO-KOD'!$A$1:$E$70,5,0),"") ->  | M42: =IF(F42<>"",VLOOKUP(C42,Nap.hladiny!$A:$D,2,0),"") ->  | N42: =IF(F42<>"",VLOOKUP(D42,Pole!$A:$B,2,0),"") ->  | O42: =IF(F42<>"",VLOOKUP(E42&"|"&F42,'IO-KOD'!$A$1:$E$70,3,0),"") ->  | P42: =IF(F42<>"",VLOOKUP(E42&"|"&F42,'IO-KOD'!$A$1:$E$70,4,0),"") ->  | Q42: =IF(F42<>"",VLOOKUP(C42,Nap.hladiny!$A:$D,3,0),"") ->  | W42: =IF(F42<>"",VLOOKUP(E42&"|"&F42,'IO-KOD'!$A$1:$H$70,8,0),"") ->  | X42: =IF(W42<>"",VLOOKUP(W42,'104-TI'!$A:$B,2,0),"") ->  | Z42: =IF(F42<>"",VLOOKUP(E42&"|"&F42,'IO-KOD'!$A$1:$M$70,9,0),"") ->  | AA42: =IF(F42<>"",VLOOKUP(E42&"|"&F42,'IO-KOD'!$A$1:$M$70,10,0),"") ->  | AB42: =IF(F42<>"",VLOOKUP(E42&"|"&F42,'IO-KOD'!$A$1:$M$70,11,0),"") ->  | AC42: =IF(F42<>"",VLOOKUP(E42&"|"&F42,'IO-KOD'!$A$1:$M$70,12,0),"") ->  | AD42: =IF(F42<>"",VLOOKUP(E42&"|"&F42,'IO-KOD'!$A$1:$M$70,13,0),"") -> 
G43: =IF(F43<>"",VLOOKUP(E43&"|"&F43,'IO-KOD'!$A$1:$E$70,5,0),"") ->  | M43: =IF(F43<>"",VLOOKUP(C43,Nap.hladiny!$A:$D,2,0),"") ->  | N43: =IF(F43<>"",VLOOKUP(D43,Pole!$A:$B,2,0),"") ->  | O43: =IF(F43<>"",VLOOKUP(E43&"|"&F43,'IO-KOD'!$A$1:$E$70,3,0),"") ->  | P43: =IF(F43<>"",VLOOKUP(E43&"|"&F43,'IO-KOD'!$A$1:$E$70,4,0),"") ->  | Q43: =IF(F43<>"",VLOOKUP(C43,Nap.hladiny!$A:$D,3,0),"") ->  | W43: =IF(F43<>"",VLOOKUP(E43&"|"&F43,'IO-KOD'!$A$1:$H$70,8,0),"") ->  | X43: =IF(W43<>"",VLOOKUP(W43,'104-TI'!$A:$B,2,0),"") ->  | Z43: =IF(F43<>"",VLOOKUP(E43&"|"&F43,'IO-KOD'!$A$1:$M$70,9,0),"") ->  | AA43: =IF(F43<>"",VLOOKUP(E43&"|"&F43,'IO-KOD'!$A$1:$M$70,10,0),"") ->  | AB43: =IF(F43<>"",VLOOKUP(E43&"|"&F43,'IO-KOD'!$A$1:$M$70,11,0),"") ->  | AC43: =IF(F43<>"",VLOOKUP(E43&"|"&F43,'IO-KOD'!$A$1:$M$70,12,0),"") ->  | AD43: =IF(F43<>"",VLOOKUP(E43&"|"&F43,'IO-KOD'!$A$1:$M$70,13,0),"") -> 
G44: =IF(F44<>"",VLOOKUP(E44&"|"&F44,'IO-KOD'!$A$1:$E$70,5,0),"") ->  | M44: =IF(F44<>"",VLOOKUP(C44,Nap.hladiny!$A:$D,2,0),"") ->  | N44: =IF(F44<>"",VLOOKUP(D44,Pole!$A:$B,2,0),"") ->  | O44: =IF(F44<>"",VLOOKUP(E44&"|"&F44,'IO-KOD'!$A$1:$E$70,3,0),"") ->  | P44: =IF(F44<>"",VLOOKUP(E44&"|"&F44,'IO-KOD'!$A$1:$E$70,4,0),"") ->  | Q44: =IF(F44<>"",VLOOKUP(C44,Nap.hladiny!$A:$D,3,0),"") ->  | W44: =IF(F44<>"",VLOOKUP(E44&"|"&F44,'IO-KOD'!$A$1:$H$70,8,0),"") ->  | X44: =IF(W44<>"",VLOOKUP(W44,'104-TI'!$A:$B,2,0),"") ->  | Z44: =IF(F44<>"",VLOOKUP(E44&"|"&F44,'IO-KOD'!$A$1:$M$70,9,0),"") ->  | AA44: =IF(F44<>"",VLOOKUP(E44&"|"&F44,'IO-KOD'!$A$1:$M$70,10,0),"") ->  | AB44: =IF(F44<>"",VLOOKUP(E44&"|"&F44,'IO-KOD'!$A$1:$M$70,11,0),"") ->  | AC44: =IF(F44<>"",VLOOKUP(E44&"|"&F44,'IO-KOD'!$A$1:$M$70,12,0),"") ->  | AD44: =IF(F44<>"",VLOOKUP(E44&"|"&F44,'IO-KOD'!$A$1:$M$70,13,0),"") -> 
G45: =IF(F45<>"",VLOOKUP(E45&"|"&F45,'IO-KOD'!$A$1:$E$70,5,0),"") ->  | M45: =IF(F45<>"",VLOOKUP(C45,Nap.hladiny!$A:$D,2,0),"") ->  | N45: =IF(F45<>"",VLOOKUP(D45,Pole!$A:$B,2,0),"") ->  | O45: =IF(F45<>"",VLOOKUP(E45&"|"&F45,'IO-KOD'!$A$1:$E$70,3,0),"") ->  | P45: =IF(F45<>"",VLOOKUP(E45&"|"&F45,'IO-KOD'!$A$1:$E$70,4,0),"") ->  | Q45: =IF(F45<>"",VLOOKUP(C45,Nap.hladiny!$A:$D,3,0),"") ->  | W45: =IF(F45<>"",VLOOKUP(E45&"|"&F45,'IO-KOD'!$A$1:$H$70,8,0),"") ->  | X45: =IF(W45<>"",VLOOKUP(W45,'104-TI'!$A:$B,2,0),"") ->  | Z45: =IF(F45<>"",VLOOKUP(E45&"|"&F45,'IO-KOD'!$A$1:$M$70,9,0),"") ->  | AA45: =IF(F45<>"",VLOOKUP(E45&"|"&F45,'IO-KOD'!$A$1:$M$70,10,0),"") ->  | AB45: =IF(F45<>"",VLOOKUP(E45&"|"&F45,'IO-KOD'!$A$1:$M$70,11,0),"") ->  | AC45: =IF(F45<>"",VLOOKUP(E45&"|"&F45,'IO-KOD'!$A$1:$M$70,12,0),"") ->  | AD45: =IF(F45<>"",VLOOKUP(E45&"|"&F45,'IO-KOD'!$A$1:$M$70,13,0),"") -> 
G46: =IF(F46<>"",VLOOKUP(E46&"|"&F46,'IO-KOD'!$A$1:$E$70,5,0),"") ->  | M46: =IF(F46<>"",VLOOKUP(C46,Nap.hladiny!$A:$D,2,0),"") ->  | N46: =IF(F46<>"",VLOOKUP(D46,Pole!$A:$B,2,0),"") ->  | O46: =IF(F46<>"",VLOOKUP(E46&"|"&F46,'IO-KOD'!$A$1:$E$70,3,0),"") ->  | P46: =IF(F46<>"",VLOOKUP(E46&"|"&F46,'IO-KOD'!$A$1:$E$70,4,0),"") ->  | Q46: =IF(F46<>"",VLOOKUP(C46,Nap.hladiny!$A:$D,3,0),"") ->  | W46: =IF(F46<>"",VLOOKUP(E46&"|"&F46,'IO-KOD'!$A$1:$H$70,8,0),"") ->  | X46: =IF(W46<>"",VLOOKUP(W46,'104-TI'!$A:$B,2,0),"") ->  | Z46: =IF(F46<>"",VLOOKUP(E46&"|"&F46,'IO-KOD'!$A$1:$M$70,9,0),"") ->  | AA46: =IF(F46<>"",VLOOKUP(E46&"|"&F46,'IO-KOD'!$A$1:$M$70,10,0),"") ->  | AB46: =IF(F46<>"",VLOOKUP(E46&"|"&F46,'IO-KOD'!$A$1:$M$70,11,0),"") ->  | AC46: =IF(F46<>"",VLOOKUP(E46&"|"&F46,'IO-KOD'!$A$1:$M$70,12,0),"") ->  | AD46: =IF(F46<>"",VLOOKUP(E46&"|"&F46,'IO-KOD'!$A$1:$M$70,13,0),"") -> 
G47: =IF(F47<>"",VLOOKUP(E47&"|"&F47,'IO-KOD'!$A$1:$E$70,5,0),"") ->  | M47: =IF(F47<>"",VLOOKUP(C47,Nap.hladiny!$A:$D,2,0),"") ->  | N47: =IF(F47<>"",VLOOKUP(D47,Pole!$A:$B,2,0),"") ->  | O47: =IF(F47<>"",VLOOKUP(E47&"|"&F47,'IO-KOD'!$A$1:$E$70,3,0),"") ->  | P47: =IF(F47<>"",VLOOKUP(E47&"|"&F47,'IO-KOD'!$A$1:$E$70,4,0),"") ->  | Q47: =IF(F47<>"",VLOOKUP(C47,Nap.hladiny!$A:$D,3,0),"") ->  | W47: =IF(F47<>"",VLOOKUP(E47&"|"&F47,'IO-KOD'!$A$1:$H$70,8,0),"") ->  | X47: =IF(W47<>"",VLOOKUP(W47,'104-TI'!$A:$B,2,0),"") ->  | Z47: =IF(F47<>"",VLOOKUP(E47&"|"&F47,'IO-KOD'!$A$1:$M$70,9,0),"") ->  | AA47: =IF(F47<>"",VLOOKUP(E47&"|"&F47,'IO-KOD'!$A$1:$M$70,10,0),"") ->  | AB47: =IF(F47<>"",VLOOKUP(E47&"|"&F47,'IO-KOD'!$A$1:$M$70,11,0),"") ->  | AC47: =IF(F47<>"",VLOOKUP(E47&"|"&F47,'IO-KOD'!$A$1:$M$70,12,0),"") ->  | AD47: =IF(F47<>"",VLOOKUP(E47&"|"&F47,'IO-KOD'!$A$1:$M$70,13,0),"") -> 
G48: =IF(F48<>"",VLOOKUP(E48&"|"&F48,'IO-KOD'!$A$1:$E$70,5,0),"") ->  | M48: =IF(F48<>"",VLOOKUP(C48,Nap.hladiny!$A:$D,2,0),"") ->  | N48: =IF(F48<>"",VLOOKUP(D48,Pole!$A:$B,2,0),"") ->  | O48: =IF(F48<>"",VLOOKUP(E48&"|"&F48,'IO-KOD'!$A$1:$E$70,3,0),"") ->  | P48: =IF(F48<>"",VLOOKUP(E48&"|"&F48,'IO-KOD'!$A$1:$E$70,4,0),"") ->  | Q48: =IF(F48<>"",VLOOKUP(C48,Nap.hladiny!$A:$D,3,0),"") ->  | W48: =IF(F48<>"",VLOOKUP(E48&"|"&F48,'IO-KOD'!$A$1:$H$70,8,0),"") ->  | X48: =IF(W48<>"",VLOOKUP(W48,'104-TI'!$A:$B,2,0),"") ->  | Z48: =IF(F48<>"",VLOOKUP(E48&"|"&F48,'IO-KOD'!$A$1:$M$70,9,0),"") ->  | AA48: =IF(F48<>"",VLOOKUP(E48&"|"&F48,'IO-KOD'!$A$1:$M$70,10,0),"") ->  | AB48: =IF(F48<>"",VLOOKUP(E48&"|"&F48,'IO-KOD'!$A$1:$M$70,11,0),"") ->  | AC48: =IF(F48<>"",VLOOKUP(E48&"|"&F48,'IO-KOD'!$A$1:$M$70,12,0),"") ->  | AD48: =IF(F48<>"",VLOOKUP(E48&"|"&F48,'IO-KOD'!$A$1:$M$70,13,0),"") -> 
G49: =IF(F49<>"",VLOOKUP(E49&"|"&F49,'IO-KOD'!$A$1:$E$70,5,0),"") ->  | M49: =IF(F49<>"",VLOOKUP(C49,Nap.hladiny!$A:$D,2,0),"") ->  | N49: =IF(F49<>"",VLOOKUP(D49,Pole!$A:$B,2,0),"") ->  | O49: =IF(F49<>"",VLOOKUP(E49&"|"&F49,'IO-KOD'!$A$1:$E$70,3,0),"") ->  | P49: =IF(F49<>"",VLOOKUP(E49&"|"&F49,'IO-KOD'!$A$1:$E$70,4,0),"") ->  | Q49: =IF(F49<>"",VLOOKUP(C49,Nap.hladiny!$A:$D,3,0),"") ->  | W49: =IF(F49<>"",VLOOKUP(E49&"|"&F49,'IO-KOD'!$A$1:$H$70,8,0),"") ->  | X49: =IF(W49<>"",VLOOKUP(W49,'104-TI'!$A:$B,2,0),"") ->  | Z49: =IF(F49<>"",VLOOKUP(E49&"|"&F49,'IO-KOD'!$A$1:$M$70,9,0),"") ->  | AA49: =IF(F49<>"",VLOOKUP(E49&"|"&F49,'IO-KOD'!$A$1:$M$70,10,0),"") ->  | AB49: =IF(F49<>"",VLOOKUP(E49&"|"&F49,'IO-KOD'!$A$1:$M$70,11,0),"") ->  | AC49: =IF(F49<>"",VLOOKUP(E49&"|"&F49,'IO-KOD'!$A$1:$M$70,12,0),"") ->  | AD49: =IF(F49<>"",VLOOKUP(E49&"|"&F49,'IO-KOD'!$A$1:$M$70,13,0),"") -> 
G50: =IF(F50<>"",VLOOKUP(E50&"|"&F50,'IO-KOD'!$A$1:$E$70,5,0),"") ->  | M50: =IF(F50<>"",VLOOKUP(C50,Nap.hladiny!$A:$D,2,0),"") ->  | N50: =IF(F50<>"",VLOOKUP(D50,Pole!$A:$B,2,0),"") ->  | O50: =IF(F50<>"",VLOOKUP(E50&"|"&F50,'IO-KOD'!$A$1:$E$70,3,0),"") ->  | P50: =IF(F50<>"",VLOOKUP(E50&"|"&F50,'IO-KOD'!$A$1:$E$70,4,0),"") ->  | Q50: =IF(F50<>"",VLOOKUP(C50,Nap.hladiny!$A:$D,3,0),"") ->  | W50: =IF(F50<>"",VLOOKUP(E50&"|"&F50,'IO-KOD'!$A$1:$H$70,8,0),"") ->  | X50: =IF(W50<>"",VLOOKUP(W50,'104-TI'!$A:$B,2,0),"") ->  | Z50: =IF(F50<>"",VLOOKUP(E50&"|"&F50,'IO-KOD'!$A$1:$M$70,9,0),"") ->  | AA50: =IF(F50<>"",VLOOKUP(E50&"|"&F50,'IO-KOD'!$A$1:$M$70,10,0),"") ->  | AB50: =IF(F50<>"",VLOOKUP(E50&"|"&F50,'IO-KOD'!$A$1:$M$70,11,0),"") ->  | AC50: =IF(F50<>"",VLOOKUP(E50&"|"&F50,'IO-KOD'!$A$1:$M$70,12,0),"") ->  | AD50: =IF(F50<>"",VLOOKUP(E50&"|"&F50,'IO-KOD'!$A$1:$M$70,13,0),"") -> 
G51: =IF(F51<>"",VLOOKUP(E51&"|"&F51,'IO-KOD'!$A$1:$E$70,5,0),"") ->  | M51: =IF(F51<>"",VLOOKUP(C51,Nap.hladiny!$A:$D,2,0),"") ->  | N51: =IF(F51<>"",VLOOKUP(D51,Pole!$A:$B,2,0),"") ->  | O51: =IF(F51<>"",VLOOKUP(E51&"|"&F51,'IO-KOD'!$A$1:$E$70,3,0),"") ->  | P51: =IF(F51<>"",VLOOKUP(E51&"|"&F51,'IO-KOD'!$A$1:$E$70,4,0),"") ->  | Q51: =IF(F51<>"",VLOOKUP(C51,Nap.hladiny!$A:$D,3,0),"") ->  | W51: =IF(F51<>"",VLOOKUP(E51&"|"&F51,'IO-KOD'!$A$1:$H$70,8,0),"") ->  | X51: =IF(W51<>"",VLOOKUP(W51,'104-TI'!$A:$B,2,0),"") ->  | Z51: =IF(F51<>"",VLOOKUP(E51&"|"&F51,'IO-KOD'!$A$1:$M$70,9,0),"") ->  | AA51: =IF(F51<>"",VLOOKUP(E51&"|"&F51,'IO-KOD'!$A$1:$M$70,10,0),"") ->  | AB51: =IF(F51<>"",VLOOKUP(E51&"|"&F51,'IO-KOD'!$A$1:$M$70,11,0),"") ->  | AC51: =IF(F51<>"",VLOOKUP(E51&"|"&F51,'IO-KOD'!$A$1:$M$70,12,0),"") ->  | AD51: =IF(F51<>"",VLOOKUP(E51&"|"&F51,'IO-KOD'!$A$1:$M$70,13,0),"") -> 
G52: =IF(F52<>"",VLOOKUP(E52&"|"&F52,'IO-KOD'!$A$1:$E$70,5,0),"") ->  | M52: =IF(F52<>"",VLOOKUP(C52,Nap.hladiny!$A:$D,2,0),"") ->  | N52: =IF(F52<>"",VLOOKUP(D52,Pole!$A:$B,2,0),"") ->  | O52: =IF(F52<>"",VLOOKUP(E52&"|"&F52,'IO-KOD'!$A$1:$E$70,3,0),"") ->  | P52: =IF(F52<>"",VLOOKUP(E52&"|"&F52,'IO-KOD'!$A$1:$E$70,4,0),"") ->  | Q52: =IF(F52<>"",VLOOKUP(C52,Nap.hladiny!$A:$D,3,0),"") ->  | W52: =IF(F52<>"",VLOOKUP(E52&"|"&F52,'IO-KOD'!$A$1:$H$70,8,0),"") ->  | X52: =IF(W52<>"",VLOOKUP(W52,'104-TI'!$A:$B,2,0),"") ->  | Z52: =IF(F52<>"",VLOOKUP(E52&"|"&F52,'IO-KOD'!$A$1:$M$70,9,0),"") ->  | AA52: =IF(F52<>"",VLOOKUP(E52&"|"&F52,'IO-KOD'!$A$1:$M$70,10,0),"") ->  | AB52: =IF(F52<>"",VLOOKUP(E52&"|"&F52,'IO-KOD'!$A$1:$M$70,11,0),"") ->  | AC52: =IF(F52<>"",VLOOKUP(E52&"|"&F52,'IO-KOD'!$A$1:$M$70,12,0),"") ->  | AD52: =IF(F52<>"",VLOOKUP(E52&"|"&F52,'IO-KOD'!$A$1:$M$70,13,0),"") -> 
G53: =IF(F53<>"",VLOOKUP(E53&"|"&F53,'IO-KOD'!$A$1:$E$70,5,0),"") ->  | M53: =IF(F53<>"",VLOOKUP(C53,Nap.hladiny!$A:$D,2,0),"") ->  | N53: =IF(F53<>"",VLOOKUP(D53,Pole!$A:$B,2,0),"") ->  | O53: =IF(F53<>"",VLOOKUP(E53&"|"&F53,'IO-KOD'!$A$1:$E$70,3,0),"") ->  | P53: =IF(F53<>"",VLOOKUP(E53&"|"&F53,'IO-KOD'!$A$1:$E$70,4,0),"") ->  | Q53: =IF(F53<>"",VLOOKUP(C53,Nap.hladiny!$A:$D,3,0),"") ->  | W53: =IF(F53<>"",VLOOKUP(E53&"|"&F53,'IO-KOD'!$A$1:$H$70,8,0),"") ->  | X53: =IF(W53<>"",VLOOKUP(W53,'104-TI'!$A:$B,2,0),"") ->  | Z53: =IF(F53<>"",VLOOKUP(E53&"|"&F53,'IO-KOD'!$A$1:$M$70,9,0),"") ->  | AA53: =IF(F53<>"",VLOOKUP(E53&"|"&F53,'IO-KOD'!$A$1:$M$70,10,0),"") ->  | AB53: =IF(F53<>"",VLOOKUP(E53&"|"&F53,'IO-KOD'!$A$1:$M$70,11,0),"") ->  | AC53: =IF(F53<>"",VLOOKUP(E53&"|"&F53,'IO-KOD'!$A$1:$M$70,12,0),"") ->  | AD53: =IF(F53<>"",VLOOKUP(E53&"|"&F53,'IO-KOD'!$A$1:$M$70,13,0),"") -> 
G54: =IF(F54<>"",VLOOKUP(E54&"|"&F54,'IO-KOD'!$A$1:$E$70,5,0),"") ->  | M54: =IF(F54<>"",VLOOKUP(C54,Nap.hladiny!$A:$D,2,0),"") ->  | N54: =IF(F54<>"",VLOOKUP(D54,Pole!$A:$B,2,0),"") ->  | O54: =IF(F54<>"",VLOOKUP(E54&"|"&F54,'IO-KOD'!$A$1:$E$70,3,0),"") ->  | P54: =IF(F54<>"",VLOOKUP(E54&"|"&F54,'IO-KOD'!$A$1:$E$70,4,0),"") ->  | Q54: =IF(F54<>"",VLOOKUP(C54,Nap.hladiny!$A:$D,3,0),"") ->  | W54: =IF(F54<>"",VLOOKUP(E54&"|"&F54,'IO-KOD'!$A$1:$H$70,8,0),"") ->  | X54: =IF(W54<>"",VLOOKUP(W54,'104-TI'!$A:$B,2,0),"") ->  | Z54: =IF(F54<>"",VLOOKUP(E54&"|"&F54,'IO-KOD'!$A$1:$M$70,9,0),"") ->  | AA54: =IF(F54<>"",VLOOKUP(E54&"|"&F54,'IO-KOD'!$A$1:$M$70,10,0),"") ->  | AB54: =IF(F54<>"",VLOOKUP(E54&"|"&F54,'IO-KOD'!$A$1:$M$70,11,0),"") ->  | AC54: =IF(F54<>"",VLOOKUP(E54&"|"&F54,'IO-KOD'!$A$1:$M$70,12,0),"") ->  | AD54: =IF(F54<>"",VLOOKUP(E54&"|"&F54,'IO-KOD'!$A$1:$M$70,13,0),"") -> 
G55: =IF(F55<>"",VLOOKUP(E55&"|"&F55,'IO-KOD'!$A$1:$E$70,5,0),"") ->  | M55: =IF(F55<>"",VLOOKUP(C55,Nap.hladiny!$A:$D,2,0),"") ->  | N55: =IF(F55<>"",VLOOKUP(D55,Pole!$A:$B,2,0),"") ->  | O55: =IF(F55<>"",VLOOKUP(E55&"|"&F55,'IO-KOD'!$A$1:$E$70,3,0),"") ->  | P55: =IF(F55<>"",VLOOKUP(E55&"|"&F55,'IO-KOD'!$A$1:$E$70,4,0),"") ->  | Q55: =IF(F55<>"",VLOOKUP(C55,Nap.hladiny!$A:$D,3,0),"") ->  | W55: =IF(F55<>"",VLOOKUP(E55&"|"&F55,'IO-KOD'!$A$1:$H$70,8,0),"") ->  | X55: =IF(W55<>"",VLOOKUP(W55,'104-TI'!$A:$B,2,0),"") ->  | Z55: =IF(F55<>"",VLOOKUP(E55&"|"&F55,'IO-KOD'!$A$1:$M$70,9,0),"") ->  | AA55: =IF(F55<>"",VLOOKUP(E55&"|"&F55,'IO-KOD'!$A$1:$M$70,10,0),"") ->  | AB55: =IF(F55<>"",VLOOKUP(E55&"|"&F55,'IO-KOD'!$A$1:$M$70,11,0),"") ->  | AC55: =IF(F55<>"",VLOOKUP(E55&"|"&F55,'IO-KOD'!$A$1:$M$70,12,0),"") ->  | AD55: =IF(F55<>"",VLOOKUP(E55&"|"&F55,'IO-KOD'!$A$1:$M$70,13,0),"") -> 
G56: =IF(F56<>"",VLOOKUP(E56&"|"&F56,'IO-KOD'!$A$1:$E$70,5,0),"") ->  | M56: =IF(F56<>"",VLOOKUP(C56,Nap.hladiny!$A:$D,2,0),"") ->  | N56: =IF(F56<>"",VLOOKUP(D56,Pole!$A:$B,2,0),"") ->  | O56: =IF(F56<>"",VLOOKUP(E56&"|"&F56,'IO-KOD'!$A$1:$E$70,3,0),"") ->  | P56: =IF(F56<>"",VLOOKUP(E56&"|"&F56,'IO-KOD'!$A$1:$E$70,4,0),"") ->  | Q56: =IF(F56<>"",VLOOKUP(C56,Nap.hladiny!$A:$D,3,0),"") ->  | W56: =IF(F56<>"",VLOOKUP(E56&"|"&F56,'IO-KOD'!$A$1:$H$70,8,0),"") ->  | X56: =IF(W56<>"",VLOOKUP(W56,'104-TI'!$A:$B,2,0),"") ->  | Z56: =IF(F56<>"",VLOOKUP(E56&"|"&F56,'IO-KOD'!$A$1:$M$70,9,0),"") ->  | AA56: =IF(F56<>"",VLOOKUP(E56&"|"&F56,'IO-KOD'!$A$1:$M$70,10,0),"") ->  | AB56: =IF(F56<>"",VLOOKUP(E56&"|"&F56,'IO-KOD'!$A$1:$M$70,11,0),"") ->  | AC56: =IF(F56<>"",VLOOKUP(E56&"|"&F56,'IO-KOD'!$A$1:$M$70,12,0),"") ->  | AD56: =IF(F56<>"",VLOOKUP(E56&"|"&F56,'IO-KOD'!$A$1:$M$70,13,0),"") -> 
G57: =IF(F57<>"",VLOOKUP(E57&"|"&F57,'IO-KOD'!$A$1:$E$70,5,0),"") ->  | M57: =IF(F57<>"",VLOOKUP(C57,Nap.hladiny!$A:$D,2,0),"") ->  | N57: =IF(F57<>"",VLOOKUP(D57,Pole!$A:$B,2,0),"") ->  | O57: =IF(F57<>"",VLOOKUP(E57&"|"&F57,'IO-KOD'!$A$1:$E$70,3,0),"") ->  | P57: =IF(F57<>"",VLOOKUP(E57&"|"&F57,'IO-KOD'!$A$1:$E$70,4,0),"") ->  | Q57: =IF(F57<>"",VLOOKUP(C57,Nap.hladiny!$A:$D,3,0),"") ->  | W57: =IF(F57<>"",VLOOKUP(E57&"|"&F57,'IO-KOD'!$A$1:$H$70,8,0),"") ->  | X57: =IF(W57<>"",VLOOKUP(W57,'104-TI'!$A:$B,2,0),"") ->  | Z57: =IF(F57<>"",VLOOKUP(E57&"|"&F57,'IO-KOD'!$A$1:$M$70,9,0),"") ->  | AA57: =IF(F57<>"",VLOOKUP(E57&"|"&F57,'IO-KOD'!$A$1:$M$70,10,0),"") ->  | AB57: =IF(F57<>"",VLOOKUP(E57&"|"&F57,'IO-KOD'!$A$1:$M$70,11,0),"") ->  | AC57: =IF(F57<>"",VLOOKUP(E57&"|"&F57,'IO-KOD'!$A$1:$M$70,12,0),"") ->  | AD57: =IF(F57<>"",VLOOKUP(E57&"|"&F57,'IO-KOD'!$A$1:$M$70,13,0),"") -> 
G58: =IF(F58<>"",VLOOKUP(E58&"|"&F58,'IO-KOD'!$A$1:$E$70,5,0),"") ->  | M58: =IF(F58<>"",VLOOKUP(C58,Nap.hladiny!$A:$D,2,0),"") ->  | N58: =IF(F58<>"",VLOOKUP(D58,Pole!$A:$B,2,0),"") ->  | O58: =IF(F58<>"",VLOOKUP(E58&"|"&F58,'IO-KOD'!$A$1:$E$70,3,0),"") ->  | P58: =IF(F58<>"",VLOOKUP(E58&"|"&F58,'IO-KOD'!$A$1:$E$70,4,0),"") ->  | Q58: =IF(F58<>"",VLOOKUP(C58,Nap.hladiny!$A:$D,3,0),"") ->  | W58: =IF(F58<>"",VLOOKUP(E58&"|"&F58,'IO-KOD'!$A$1:$H$70,8,0),"") ->  | X58: =IF(W58<>"",VLOOKUP(W58,'104-TI'!$A:$B,2,0),"") ->  | Z58: =IF(F58<>"",VLOOKUP(E58&"|"&F58,'IO-KOD'!$A$1:$M$70,9,0),"") ->  | AA58: =IF(F58<>"",VLOOKUP(E58&"|"&F58,'IO-KOD'!$A$1:$M$70,10,0),"") ->  | AB58: =IF(F58<>"",VLOOKUP(E58&"|"&F58,'IO-KOD'!$A$1:$M$70,11,0),"") ->  | AC58: =IF(F58<>"",VLOOKUP(E58&"|"&F58,'IO-KOD'!$A$1:$M$70,12,0),"") ->  | AD58: =IF(F58<>"",VLOOKUP(E58&"|"&F58,'IO-KOD'!$A$1:$M$70,13,0),"") -> 
G59: =IF(F59<>"",VLOOKUP(E59&"|"&F59,'IO-KOD'!$A$1:$E$70,5,0),"") ->  | M59: =IF(F59<>"",VLOOKUP(C59,Nap.hladiny!$A:$D,2,0),"") ->  | N59: =IF(F59<>"",VLOOKUP(D59,Pole!$A:$B,2,0),"") ->  | O59: =IF(F59<>"",VLOOKUP(E59&"|"&F59,'IO-KOD'!$A$1:$E$70,3,0),"") ->  | P59: =IF(F59<>"",VLOOKUP(E59&"|"&F59,'IO-KOD'!$A$1:$E$70,4,0),"") ->  | Q59: =IF(F59<>"",VLOOKUP(C59,Nap.hladiny!$A:$D,3,0),"") ->  | W59: =IF(F59<>"",VLOOKUP(E59&"|"&F59,'IO-KOD'!$A$1:$H$70,8,0),"") ->  | X59: =IF(W59<>"",VLOOKUP(W59,'104-TI'!$A:$B,2,0),"") ->  | Z59: =IF(F59<>"",VLOOKUP(E59&"|"&F59,'IO-KOD'!$A$1:$M$70,9,0),"") ->  | AA59: =IF(F59<>"",VLOOKUP(E59&"|"&F59,'IO-KOD'!$A$1:$M$70,10,0),"") ->  | AB59: =IF(F59<>"",VLOOKUP(E59&"|"&F59,'IO-KOD'!$A$1:$M$70,11,0),"") ->  | AC59: =IF(F59<>"",VLOOKUP(E59&"|"&F59,'IO-KOD'!$A$1:$M$70,12,0),"") ->  | AD59: =IF(F59<>"",VLOOKUP(E59&"|"&F59,'IO-KOD'!$A$1:$M$70,13,0),"") -> 

Sheet Nap.hladiny (hidden)
A1: Napěťové hladiny
A2: TA_NAP | B2: A | C2: E | D2: Subsystém
A3: 110 | B3: 1 | C3: 0 | D3: 110 kV
A4: 35 | B4: 2 | C4: 0 | D4: 35 kV
A5: 22 | B5: 3 | C5: 0 | D5: 22 kV
A6: 10 | B6: 4 | C6: 0 | D6: 10 kV
A7: NNO | B7: 5 | C7: 0 | D7: 0,4 kV odběratele
A8: SPL | B8: 6 | C8: 0 | D8: Společné provozy
A9: NN1 | B9: 7 | C9: 0 | D9: 0,4 kV
A10: NN2 | B10: 7 | C10: 1 | D10: 0,4 kV

Sheet Pole (hidden)
A1: Pole
A2: TA_POLE | B2: B | C2: Poznámka
A3: 0 | B3: 0 | C3: Společné provozy
A4: EZS | B4: 0 | C4: Elektronický zabezpečovací systém
A5: 1 | B5: 1
A6: 2 | B6: 2
A7: 3 | B7: 3
A8: 4 | B8: 4
A9: 5 | B9: 5
A10: 6 | B10: 6
A11: 7 | B11: 7
A12: 8 | B12: 8
A13: 9 | B13: 9
A14: 10 | B14: 10
A15: 11 | B15: 11
A16: 12 | B16: 12
A17: 13 | B17: 13
A18: 14 | B18: 14
A19: 15 | B19: 15
A20: 16 | B20: 16
A21: 17 | B21: 17
A22: 18 | B22: 18
A23: 19 | B23: 19
A24: 20 | B24: 20
A25: 81 | B25: 81 | C25: Přípojnice NN trafa T1
A26: 82 | B26: 82 | C26: Přípojnice NN trafa T2
A27: 83 | B27: 83 | C27: Přípojnice NN trafa T3
A28: 84 | B28: 84 | C28: Přípojnice NN trafa T4
A29: 85 | B29: 85 | C29: Přípojnice NN trafa T5
A30: 86 | B30: 86 | C30: Přípojnice NN trafa T6
A31: 87 | B31: 87 | C31: Přípojnice NN trafa T7
A32: 88 | B32: 88 | C32: Přípojnice NN trafa T8
A33: 89 | B33: 89 | C33: Přípojnice NN trafa T9
A34: W11 | B34: 101 | C34: Přípojnice A1
A35: W12 | B35: 102 | C35: Přípojnice A2
A36: W13 | B36: 103 | C36: Přípojnice A3
A37: W14 | B37: 104 | C37: Přípojnice A4
A38: W21 | B38: 105 | C38: Přípojnice B1
A39: W22 | B39: 106 | C39: Přípojnice B2
A40: W23 | B40: 107 | C40: Přípojnice B3
A41: W24 | B41: 108 | C41: Přípojnice B4
A42: VMS | B42: 120 | C42: Výrobní modul - společné
A43: VM1 | B43: 121 | C43: Výrobní modul 1 (NN)
A44: VM2 | B44: 122 | C44: Výrobní modul 2 (NN)
A45: VM3 | B45: 123 | C45: Výrobní modul 3 (NN)
A46: VM4 | B46: 124 | C46: Výrobní modul 4 (NN)
A47: VM5 | B47: 125 | C47: Výrobní modul 5 (NN)

Sheet IO-KOD (hidden)
A1: OZN+TYP | B1: TA_OZN | C1: C | D1: D | E1: POPIS | F1: ZKRÁCENÝ TEXT | G1: TA_TYP | H1: TI_IEC | I1: LAB0 | J1: LAB1 | K1: LAB2 | L1: LAB3 | M1: UNIT
A2: =G2&"|"&B2 -> S|QM | B2: QM | C2: 0 | D2: 1 | E2: Vypínač QM - stav | F2: Vypínač QM | G2: S | H2: 31 | I2: MEZIPOLOHA | J2: VYPNUTO | K2: ZAPNUTO | L2: PORUCHA | M2: -
A3: =G3&"|"&B3 -> S|Q6 | B3: Q6 | C3: 0 | D3: 17 | E3: Odpojovač Q6 - stav | F3: Odpojovač Q6 | G3: S | H3: 31 | I3: MEZIPOLOHA | J3: VYPNUTO | K3: ZAPNUTO | L3: PORUCHA | M3: -
A4: S|QE6 | B4: QE6 | C4: 0 | D4: 96 | E4: Uzemňovač QE6 - stav | F4: Uzemňovač QE6 | G4: S | H4: 31 | I4: MEZIPOLOHA | J4: VYPNUTO | K4: ZAPNUTO | L4: PORUCHA | M4: -
A5: S|QS1 | B5: QS1 | C5: 0 | D5: 124 | E5: Odpínač QS1 - stav | F5: Odpínač QS1 | G5: S | H5: 31 | I5: MEZIPOLOHA | J5: VYPNUTO | K5: ZAPNUTO | L5: PORUCHA | M5: -
A6: S|QSF1 | B6: QSF1 | C6: 0 | D6: 127 | E6: Odpínač s pojistkou QSF1 - stav | F6: Odpínač QSF1 | G6: S | H6: 31 | I6: MEZIPOLOHA | J6: VYPNUTO | K6: ZAPNUTO | L6: PORUCHA | M6: -
A7: S|FA1 | B7: FA1 | C7: 0 | D7: 142 | E7: Jistič FA1 - stav | F7: Jistič FA1 | G7: S | H7: 31 | I7: MEZIPOLOHA | J7: VYPNUTO | K7: ZAPNUTO | L7: PORUCHA | M7: -
A8: S|FA2 | B8: FA2 | C8: 0 | D8: 143 | E8: Jistič FA2 - stav | F8: Jistič FA2 | G8: S | H8: 31 | I8: MEZIPOLOHA | J8: VYPNUTO | K8: ZAPNUTO | L8: PORUCHA | M8: -
A9: S|FA3 | B9: FA3 | C9: 0 | D9: 144 | E9: Jistič FA3 - stav | F9: Jistič FA3 | G9: S | H9: 31 | I9: MEZIPOLOHA | J9: VYPNUTO | K9: ZAPNUTO | L9: PORUCHA | M9: -
A10: S|FA4 | B10: FA4 | C10: 0 | D10: 145 | E10: Jistič FA4 - stav | F10: Jistič FA4 | G10: S | H10: 31 | I10: MEZIPOLOHA | J10: VYPNUTO | K10: ZAPNUTO | L10: PORUCHA | M10: -
A11: S|QM_TEST | B11: QM_TEST | C11: 0 | D11: 255 | E11: Zkušební vypínač - stav | F11: Zk.vyp. | G11: S | H11: 31 | I11: MEZIPOLOHA | J11: VYPNUTO | K11: ZAPNUTO | L11: PORUCHA | M11: -
A12: P|H100T | B12: H100T | C12: 1 | D12: 1 | E12: Ochrany - působení ochran | F12: Ochrany-půs.ochran | G12: P | H12: 30 | I12: KONEC | J12: ZAČÁTEK | K12: - | L12: - | M12: -
A13: P|H100IF | B13: H100IF | C13: 2 | D13: 17 | E13: Ochrany - vnitřní porucha | F13: Ochrany-vnitř.por. | G13: P | H13: 30 | I13: KONEC | J13: ZAČÁTEK | K13: - | L13: - | M13: -
A14: S|SPFG090C | B14: SPFG090C | C14: 6 | D14: 226 | E14: Stupeň regulace cos fi - 0.90C - nastaveno | F14: Stupeň regulace cosfi-0,90C | G14: S | H14: 30 | I14: VYPNUTO | J14: ZAPNUTO | K14: - | L14: - | M14: -
A15: S|SPFG095C | B15: SPFG095C | C15: 6 | D15: 227 | E15: Stupeň regulace cos fi - 0.95C - nastaveno | F15: Stupeň regulace cosfi-0,95C | G15: S | H15: 30 | I15: VYPNUTO | J15: ZAPNUTO | K15: - | L15: - | M15: -
A16: S|SPFG100 | B16: SPFG100 | C16: 6 | D16: 228 | E16: Stupeň regulace cos fi - 1.00 - nastaveno | F16: Stupeň regulace cosfi-1,00 | G16: S | H16: 30 | I16: VYPNUTO | J16: ZAPNUTO | K16: - | L16: - | M16: -
A17: S|SPFG095L | B17: SPFG095L | C17: 6 | D17: 229 | E17: Stupeň regulace cos fi - 0.95L - nastaveno | F17: Stupeň regulace cosfi-0,95L | G17: S | H17: 30 | I17: VYPNUTO | J17: ZAPNUTO | K17: - | L17: - | M17: -
A18: S|SPFG090L | B18: SPFG090L | C18: 6 | D18: 230 | E18: Stupeň regulace cos fi - 0.90L - nastaveno | F18: Stupeň regulace cosfi-0,90L | G18: S | H18: 30 | I18: VYPNUTO | J18: ZAPNUTO | K18: - | L18: - | M18: -
A19: S|SPG100 | B19: SPG100 | C19: 6 | D19: 232 | E19: Stupeň regulace P - výroba 100% - nastaveno | F19: Stupeň regulace P-výroba 100% | G19: S | H19: 30 | I19: VYPNUTO | J19: ZAPNUTO | K19: - | L19: - | M19: -
A20: S|SPG060 | B20: SPG060 | C20: 6 | D20: 233 | E20: Stupeň regulace P - výroba 60% - nastaveno | F20: Stupeň regulace P-výroba 60% | G20: S | H20: 30 | I20: VYPNUTO | J20: ZAPNUTO | K20: - | L20: - | M20: -
A21: S|SPG030 | B21: SPG030 | C21: 6 | D21: 234 | E21: Stupeň regulace P - výroba 30% - nastaveno | F21: Stupeň regulace P-výroba 30% | G21: S | H21: 30 | I21: VYPNUTO | J21: ZAPNUTO | K21: - | L21: - | M21: -
A22: S|SPG000 | B22: SPG000 | C22: 6 | D22: 235 | E22: Stupeň regulace P - výroba 0% - nastaveno | F22: Stupeň regulace P-výroba 0% | G22: S | H22: 30 | I22: VYPNUTO | J22: ZAPNUTO | K22: - | L22: - | M22: -
A23: S|SPG075 | B23: SPG075 | C23: 6 | D23: 236 | E23: Stupeň regulace P - výroba 75% - nastaveno | F23: Stupeň regulace P-výroba 75% | G23: S | H23: 30 | I23: VYPNUTO | J23: ZAPNUTO | K23: - | L23: - | M23: -
A24: S|SPG050 | B24: SPG050 | C24: 6 | D24: 237 | E24: Stupeň regulace P - výroba 50% - nastaveno | F24: Stupeň regulace P-výroba 50% | G24: S | H24: 30 | I24: VYPNUTO | J24: ZAPNUTO | K24: - | L24: - | M24: -
A25: P|H835L | B25: H835L | C25: 7 | D25: 128 | E25: Stejnosměrné napájení ovládání - ztráta napětí | F25: Ss.nap.ovl.-ztr.U | G25: P | H25: 30 | I25: KONEC | J25: ZAČÁTEK | K25: - | L25: - | M25: -
A26: P|H842L | B26: H842L | C26: 8 | D26: 43 | E26: Střídavé napájení ovládání - ztráta napětí | F26: Stř.nap.ovládání-ztr.U | G26: P | H26: 30 | I26: KONEC | J26: ZAČÁTEK | K26: - | L26: - | M26: -
A27: Z|QM | B27: QM | C27: 10 | D27: 1 | E27: Vypínač QM - povel | F27: Vypínač QM | G27: Z | H27: 46 | I27: - | J27: VYPNOUT | K27: ZAPNOUT | L27: - | M27: -
A28: Z|QS1 | B28: QS1 | C28: 10 | D28: 128 | E28: Odpínač QS1 - povel | F28: Odpínač QS1 | G28: Z | H28: 46 | I28: - | J28: VYPNOUT | K28: ZAPNOUT | L28: - | M28: -
A29: Z|QSF1 | B29: QSF1 | C29: 10 | D29: 131 | E29: Odpínač QSF1 - povel | F29: Odpínač QSF1 | G29: Z | H29: 46 | I29: - | J29: VYPNOUT | K29: ZAPNOUT | L29: - | M29: -
A30: Z|FA1 | B30: FA1 | C30: 10 | D30: 136 | E30: Jistič FA1 - povel | F30: Jistič FA1 | G30: Z | H30: 46 | I30: - | J30: VYPNOUT | K30: ZAPNOUT | L30: - | M30: -
A31: Z|FA2 | B31: FA2 | C31: 10 | D31: 137 | E31: Jistič FA2 - povel | F31: Jistič FA2 | G31: Z | H31: 46 | I31: - | J31: VYPNOUT | K31: ZAPNOUT | L31: - | M31: -
A32: Z|FA3 | B32: FA3 | C32: 10 | D32: 138 | E32: Jistič FA3 - povel | F32: Jistič FA3 | G32: Z | H32: 46 | I32: - | J32: VYPNOUT | K32: ZAPNOUT | L32: - | M32: -
A33: Z|FA4 | B33: FA4 | C33: 10 | D33: 139 | E33: Jistič FA4 - povel | F33: Jistič FA4 | G33: Z | H33: 46 | I33: - | J33: VYPNOUT | K33: ZAPNOUT | L33: - | M33: -
A34: Z|QM_TEST | B34: QM_TEST | C34: 10 | D34: 255 | E34: Zkušební vypínač - povel | F34: Zk.vyp. | G34: Z | H34: 46 | I34: - | J34: VYPNOUT | K34: ZAPNOUT | L34: - | M34: -
A35: Z|SPG100 | B35: SPG100 | C35: 12 | D35: 81 | E35: Stupeň regulace P - výroba 100% - nastavit | F35: Stupeň regulace P-výroba 100% | G35: Z | H35: 45 | I35: VYPNOUT | J35: ZAPNOUT | K35: - | L35: - | M35: -
A36: Z|SPG060 | B36: SPG060 | C36: 12 | D36: 82 | E36: Stupeň regulace P - výroba 60% - nastavit | F36: Stupeň regulace P-výroba 60% | G36: Z | H36: 45 | I36: VYPNOUT | J36: ZAPNOUT | K36: - | L36: - | M36: -
A37: Z|SPG030 | B37: SPG030 | C37: 12 | D37: 83 | E37: Stupeň regulace P - výroba 30% - nastavit | F37: Stupeň regulace P-výroba 30% | G37: Z | H37: 45 | I37: VYPNOUT | J37: ZAPNOUT | K37: - | L37: - | M37: -
A38: Z|SPG000 | B38: SPG000 | C38: 12 | D38: 84 | E38: Stupeň regulace P - výroba 0% - nastavit | F38: Stupeň regulace P-výroba 0% | G38: Z | H38: 45 | I38: VYPNOUT | J38: ZAPNOUT | K38: - | L38: - | M38: -
A39: Z|SPG075 | B39: SPG075 | C39: 12 | D39: 85 | E39: Stupeň regulace P - výroba 75% - nastavit | F39: Stupeň regulace P-výroba 75% | G39: Z | H39: 45 | I39: VYPNOUT | J39: ZAPNOUT | K39: - | L39: - | M39: -
A40: Z|SPG050 | B40: SPG050 | C40: 12 | D40: 86 | E40: Stupeň regulace P - výroba 50% - nastavit | F40: Stupeň regulace P-výroba 50% | G40: Z | H40: 45 | I40: VYPNOUT | J40: ZAPNOUT | K40: - | L40: - | M40: -
A41: Z|SPFG090C | B41: SPFG090C | C41: 12 | D41: 127 | E41: Stupeň regulace cos fi - 0.90C - nastavit | F41: Stupeň regulace cosfi-0,90C | G41: Z | H41: 45 | I41: VYPNOUT | J41: ZAPNOUT | K41: - | L41: - | M41: -
A42: Z|SPFG095C | B42: SPFG095C | C42: 12 | D42: 128 | E42: Stupeň regulace cos fi - 0.95C - nastavit | F42: Stupeň regulace cosfi-0,95C | G42: Z | H42: 45 | I42: VYPNOUT | J42: ZAPNOUT | K42: - | L42: - | M42: -
A43: Z|SPFG100 | B43: SPFG100 | C43: 12 | D43: 129 | E43: Stupeň regulace cos fi - 1.00 - nastavit | F43: Stupeň regulace cosfi-1,00 | G43: Z | H43: 45 | I43: VYPNOUT | J43: ZAPNOUT | K43: - | L43: - | M43: -
A44: Z|SPFG095L | B44: SPFG095L | C44: 12 | D44: 130 | E44: Stupeň regulace cos fi - 0.95L - nastavit | F44: Stupeň regulace cosfi-0,95L | G44: Z | H44: 45 | I44: VYPNOUT | J44: ZAPNOUT | K44: - | L44: - | M44: -
A45: Z|SPFG090L | B45: SPFG090L | C45: 12 | D45: 131 | E45: Stupeň regulace cos fi - 0.90L - nastavit | F45: Stupeň regulace cosfi-0,90L | G45: Z | H45: 45 | I45: VYPNOUT | J45: ZAPNOUT | K45: - | L45: - | M45: -
A46: M|IL1 | B46: IL1 | C46: 13 | D46: 1 | E46: Měření proudu IL1 | F46: Proud IL1 | G46: M | H46: 13 | I46: - | J46: - | K46: - | L46: - | M46: A
A47: M|IL2 | B47: IL2 | C47: 13 | D47: 2 | E47: Měření proudu IL2 | F47: Proud IL2 | G47: M | H47: 13 | I47: - | J47: - | K47: - | L47: - | M47: A
A48: M|IL3 | B48: IL3 | C48: 13 | D48: 3 | E48: Měření proudu IL3 | F48: Proud IL3 | G48: M | H48: 13 | I48: - | J48: - | K48: - | L48: - | M48: A
A49: M|UL1 | B49: UL1 | C49: 13 | D49: 9 | E49: Měření fázového napětí UL1 | F49: Fázové napětí UL1 | G49: M | H49: 13 | I49: - | J49: - | K49: - | L49: - | M49: V
A50: M|UL2 | B50: UL2 | C50: 13 | D50: 10 | E50: Měření fázového napětí UL2 | F50: Fázové napětí UL2 | G50: M | H50: 13 | I50: - | J50: - | K50: - | L50: - | M50: V
A51: M|UL3 | B51: UL3 | C51: 13 | D51: 11 | E51: Měření fázového napětí UL3 | F51: Fázové napětí UL3 | G51: M | H51: 13 | I51: - | J51: - | K51: - | L51: - | M51: V
A52: M|UL1-L2 | B52: UL1-L2 | C52: 13 | D52: 16 | E52: Měření sdruženého napětí L1-L2 | F52: Sdružené napětí L1-L2 | G52: M | H52: 13 | I52: - | J52: - | K52: - | L52: - | M52: V
A53: M|UL2-L3 | B53: UL2-L3 | C53: 13 | D53: 17 | E53: Měření sdruženého napětí L2-L3 | F53: Sdružené napětí L2-L3 | G53: M | H53: 13 | I53: - | J53: - | K53: - | L53: - | M53: V
A54: M|UL1-L3 | B54: UL1-L3 | C54: 13 | D54: 18 | E54: Měření sdruženého napětí L1-L3 | F54: Sdružené napětí L1-L3 | G54: M | H54: 13 | I54: - | J54: - | K54: - | L54: - | M54: V
A55: M|P | B55: P | C55: 13 | D55: 22 | E55: Měření činného výkonu P | F55: Činný výkon P | G55: M | H55: 13 | I55: - | J55: - | K55: - | L55: - | M55: kW
A56: M|Q | B56: Q | C56: 13 | D56: 23 | E56: Měření jalového výkonu Q | F56: Jalový výkon Q | G56: M | H56: 13 | I56: - | J56: - | K56: - | L56: - | M56: kvar
A57: S|H298CEB | B57: H298CEB | C57: 6 | D57: 224 | E57: Automatika výrobny - blokování zapnutí | F57: Aut.vyr.-blok.zap. | G57: S | H57: 30 | I57: VYPNUTO | J57: ZAPNUTO | K57: - | L57: - | M57: -
A58: Z|H298CEB | B58: H298CEB | C58: 6 | D58: 225 | E58: Automatika výrobny - blokování zapnutí - povel | F58: Aut.vyr.-blok.zap. | G58: Z | H58: 46 | I58: - | J58: VYPNOUT | K58: ZAPNOUT | L58: - | M58: -

Sheet 104-TI (hidden)
A1: Datové typy IEC 60870-5-101/104
A2: TI_IEC | B2: TI_OZN | C2: Význam - ENG | D2: Význam - CZ
A3: 1 | B3: M_SP_NA_1 | C3: Single-point information | D3: Jednobitová informace
A4: 30 | B4: M_SP_TB_1 | C4: Single-point information with time tag | D4: Jednobitová informace s časovou známkou
A5: 3 | B5: M_DP_NA_1 | C5: Double-point information | D5: Dvoubitová informace
A6: 31 | B6: M_DP_TB_1 | C6: Double-point information with time tag | D6: Dvoubitová informace s časovou známkou
A7: 5 | B7: M_ST_NA_1 | C7: Step position information | D7: Signalizace polohy
A8: 32 | B8: M_ST_TB_1 | C8: Step position information with time tag | D8: Signalizace polohy s časovou známkou
A10: 45 | B10: C_SC_NA_1 | C10: Single command | D10: Jednobitový povel
A11: 58 | B11: C_SC_TA_1 | C11: Single command with time tag | D11: Jednobitový povel s časovou známkou
A12: 46 | B12: C_DC_NA_1 | C12: Double command | D12: Dvoubitový povel
A13: 59 | B13: C_DC_TA_1 | C13: Double command with time tag | D13: Dvoubitový povel s časovou známkou
A14: 47 | B14: C_RC_NA_1 | C14: Regulating step command | D14: Regulační krokový povel
A15: 60 | B15: C_RC_TA_1 | C15: Regulating step command with time tag | D15: Regulační krokový povel s časovou známkou
A16: 50 | B16: C_SE_NC_1 | C16: Set point command, short floating point number | D16: Nastavená hodnota
A18: 9 | B18: M_ME_NA_1 | C18: Measured value, normalized value | D18: Měřená hodnota normalizovaná
A19: 34 | B19: M_ME_TD_1 | C19: Measured value, normalized value with time tag | D19: Měřená hodnota normalizovaná s časovou známkou
A20: 11 | B20: M_ME_NB_1 | C20: Measured value, scaled value | D20: Měřená hodnota s měřítkem
A21: 35 | B21: M_ME_TE_1 | C21: Measured value, scaled value with time tag | D21: Měřená hodnota s měřítkem s časovou známkou
A22: 13 | B22: M_ME_NC_1 | C22: Measured value, short floating point number | D22: Měřená hodnota v krátké poh.řád.čárce
A23: 36 | B23: M_ME_TF_1 | C23: Measured value, short floating point number with time tag | D23: Měřená hodn.v krátké poh.řád.čárce s čas.známkou
A24: 15 | B24: M_IT_NA_1 | C24: Integrated totals | D24: Integrované součty
A25: 37 | B25: M_IT_TB_1 | C25: Integrated totals with time tag | D25: Integrované součty s časovou známkou
